Workbook

Sheet FACTORES (hidden)
A1: DEDUCIBLE | C1: COASEGURO | E1: EMERGENCIA EN EL EXTRANJERO | I1: DED CERO POR ACC | J1: COSTO | M1: RPF | N1: FIJO | O1: CAPTURA | P1: % CALCULO
A2: NUEVOS | C2: 0 | D2: 1.15 | M2: SEMESTRAL | N2: 0.0473 | O2: =+COTIZACION!H36 -> 0.0473 | P2: =IF(O2=0,1+N2,1+O2) -> 1.0473
A3: 6000 | B3: 1 | C3: 0.05 | D3: 1.09 | M3: TRIMESTRAL | N3: 0.07 | O3: =+COTIZACION!H37 -> 0.0699 | P3: =IF(O3=0,1+N3,1+O3) -> 1.0699
A4: 8000 | B4: 0.94 | C4: 0.1 | D4: 1 | M4: MENSUAL | N4: 0.1 | O4: =+COTIZACION!H38 -> 0.0999 | P4: =IF(O4=0,1+N4,1+O4) -> 1.0999
A5: 10000 | B5: 0.88 | C5: 0.15 | D5: 0.98 | E5: COBERTURA EN EL EXTRANJERO | I5: 5500 | J5: 617.7599444 | L5: 541.67 | M5: =(J5/L5)-1 -> 0.140472879
A6: 15000 | B6: 0.759 | C6: 0.2 | D6: 0.92 | I6: 6000 | J6: 655.2130737 | L6: 574.51 | M6: =(J6/L6)-1 -> 0.140472879
A7: 20000 | B7: 0.654 | C7: Catálogo | I7: 7000 | J7: 686.8497914 | L7: 602.25 | M7: 0.140472879
A8: 25000 | B8: 0.567 | I8: 8000 | J8: 714.2667594 | L8: 626.29 | M8: 0.140472879
A9: 30000 | B9: 0.52 | E9: FORMA DE PAGO | I9: 9000 | J9: 738.4789986 | L9: 647.52 | M9: 0.140472879
A10: 40000 | B10: 0.457 | E10: A = ANUAL | F10: 0 | I10: 10000 | J10: 760.1023644 | L10: 666.48 | M10: 0.140472879
A11: 50000 | B11: 0.409 | E11: S = SEMESTRAL | F11: 0.0473 | I11: 15000 | J11: 843.3682893 | L11: 739.49 | M11: 0.140472879
E12: T = TRIMESTRAL | F12: 0.07 | I12: 20000 | J12: 902.4561892 | L12: 791.3 | M12: 0.140472879
E13: M = MENSUAL | F13: 0.1 | I13: 25000 | J13: 948.2689847 | L13: 831.47 | M13: 0.140472879
I14: 30000 | J14: 1510.818637 | L14: 1324.73 | M14: 0.140472879
C15: Topes de COASEGURO | I15: 35000 | J15: 1559.357163 | L15: 1367.29 | M15: 0.140472879
C16: 0 | D16: NA | I16: 40000 | J16: 1601.372184 | L16: 1404.13 | M16: 0.140472879
C17: 0.05 | D17: NA | I17: 45000 | J17: 1638.448957 | L17: 1436.64 | M17: 0.140472879
C18: 0.1 | D18: $30,000 | I18: 50000 | J18: 1671.591099 | L18: 1465.7 | M18: 0.140472879
C19: 0.15 | D19: NA
C20: 0.2 | D20: NA
F29: ZONA | G29: FACTOR
F30: 1 | G30: 0.52
F31: 2 | G31: 0.57
A32: G.M.M. INDIVIDUAL/FAMILIAR | F32: 3 | G32: 0.67 | I32: SUMA ASEGURADA | L32: ENFERMEDADES GRAVES
A33: SUMA ASEGURADA | C33: 1000000 | F33: 4 | G33: 0.8 | I33: 200000 | J33: 0.82 | L33: 10000 | M33: 133.1937398 | N33: 116.76 | O33: =(M33/N33)-1 -> 0.1407480288
A34: DEDUCIBLE | C34: 6000 | F34: 5 | G34: 1 | I34: 250000 | J34: 0.84 | L34: 20000 | M34: =ROUND(L34/$L$33*$M$33,2) -> 266.39 | N34: 233.52 | O34: =(M34/N34)-1 -> 0.1407588215
A35: COASEGURO | C35: 0.1 | I35: 300000 | J35: 0.86 | L35: 30000 | M35: =ROUND(L35/$L$33*$M$33,2) -> 399.58 | N35: 350.28 | O35: =(M35/N35)-1 -> 0.1407445472
B36: BÁSICAS | D36: SA PARTO O CESAREA | F36: ZONA | G36: =+COTIZACION!D15 -> 4 | H36: =+VLOOKUP(G36,J228:K233,2,FALSE) -> B | I36: 350000 | J36: 0.88 | L36: 40000 | M36: 532.77 | N36: 467.04 | O36: =(M36/N36)-1 -> 0.1407374101
A37: =VLOOKUP(CONCATENATE(COTIZACION!D8,COTIZACION!D9),COTIZACION!H244:I246,2,0) -> 1 | B37: 250,000 a | C37: 10000000 | D37: 15000 | F37: FACTOR | G37: =VLOOKUP(G36,F30:G35,2,FALSE) -> 0.8 | I37: 400000 | J37: 0.9 | L37: 50000 | M37: 665.97 | N37: 583.8 | O37: =(M37/N37)-1 -> 0.1407502569
A38: E D A D | B38: HOMBRES | C38: MUJERES | D38: HOMBRES | E38: MUJERES | F38: HOMBRES | G38: MUJERES | I38: 450000 | J38: 0.91 | L38: 75000 | M38: 998.95 | N38: 875.7 | O38: =(M38/N38)-1 -> 0.1407445472
A39: 0 | B39: =IF($A$37=$C$130,ROUND(C132*(1-DESC),2),ROUND(E132*(1-DESC),2)) -> 5775.22 | C39: =IF($A$37=$C$130,ROUND(D132*(1-DESC),2),ROUND(F132*(1-DESC),2)) -> 5799.42 | D39: =B39 -> 5775.22 | E39: =C39 -> 5799.42 | F39: =ROUND(D39*$G$37,2) -> 4620.18 | G39: 4639.54 | I39: 500000 | J39: 0.92 | L39: 100000 | M39: 1331.94 | N39: 1167.6 | O39: =(M39/N39)-1 -> 0.1407502569
A40: 1 | B40: 5775.22 | C40: 5799.42 | D40: =B40 -> 5775.22 | E40: =C40 -> 5799.42 | F40: 4620.18 | G40: 4639.54 | I40: 550000 | J40: 0.93 | L40: 150000 | M40: 1997.91 | N40: 1751.4 | O40: 0.1407502569
A41: =+A40+1 -> 2 | B41: 5775.22 | C41: 5799.42 | D41: 5775.22 | E41: 5799.42 | F41: 4620.18 | G41: 4639.54 | I41: 600000 | J41: 0.94 | L41: 200000 | M41: 2663.87 | N41: 2335.2 | O41: 0.1407459746
A42: =+A41+1 -> 3 | B42: 5775.22 | C42: 5799.42 | D42: 5775.22 | E42: 5799.42 | F42: 4620.18 | G42: 4639.54 | I42: 650000 | J42: 0.95 | L42: 250000 | M42: 3329.84 | N42: 2919 | O42: 0.1407468311
A43: 4 | B43: 5775.22 | C43: 5799.42 | D43: 5775.22 | E43: 5799.42 | F43: 4620.18 | G43: 4639.54 | I43: 700000 | J43: 0.96 | L43: 300000 | M43: 3995.81 | N43: 3502.8 | O43: 0.1407474021
A44: 5 | B44: 5775.22 | C44: 5799.42 | D44: 5775.22 | E44: 5799.42 | F44: 4620.18 | G44: 4639.54 | I44: 750000 | J44: 0.97 | L44: 350000 | M44: 4661.78 | N44: 4086.6 | O44: 0.1407478099
A45: 6 | B45: 5775.22 | C45: 5799.42 | D45: 5775.22 | E45: 5799.42 | F45: =ROUND(D45*$G$37,2) -> 4620.18 | G45: =ROUND(E45*$G$37,2) -> 4639.54 | I45: 1000000 | J45: 1 | L45: 400000 | M45: 5327.75 | N45: 4670.4 | O45: 0.1407481158
A46: 7 | B46: 5775.22 | C46: 5799.42 | D46: 5775.22 | E46: 5799.42 | F46: 4620.18 | G46: 4639.54 | I46: 2000000 | J46: 1.08 | L46: 450000 | M46: 5993.72 | N46: 5254.2 | O46: 0.1407483537
A47: 8 | B47: 5775.22 | C47: 5799.42 | D47: 5775.22 | E47: 5799.42 | F47: 4620.18 | G47: 4639.54 | I47: 3000000 | J47: 1.13 | L47: 500000 | M47: 6659.69 | N47: 5838 | O47: 0.140748544
A48: 9 | B48: 5775.22 | C48: 5799.42 | D48: 5775.22 | E48: 5799.42 | F48: 4620.18 | G48: 4639.54 | I48: 4000000 | J48: 1.16 | L48: 550000 | M48: 7325.66 | N48: 6421.8 | O48: 0.1407486997
A49: 10 | B49: 5775.22 | C49: 5799.42 | D49: 5775.22 | E49: 5799.42 | F49: 4620.18 | G49: 4639.54 | I49: 5000000 | J49: 1.18 | L49: 600000 | M49: 7991.62 | N49: 7005.6 | O49: 0.1407474021
A50: 11 | B50: 5840.59 | C50: 5796.53 | D50: 5840.59 | E50: 5796.53 | F50: 4672.47 | G50: 4637.22 | I50: 6000000 | J50: 1.2 | L50: 650000 | M50: 8657.59 | N50: 7589.4 | O50: 0.1407476217
A51: 12 | B51: 5818.87 | C51: 5852.15 | D51: 5818.87 | E51: 5852.15 | F51: 4655.1 | G51: 4681.72 | I51: 7000000 | J51: 1.22 | L51: 700000 | M51: 9323.56 | N51: 8173.2 | O51: 0.1407478099
A52: 13 | B52: 5775.75 | C52: 5815.74 | D52: 5775.75 | E52: 5815.74 | F52: 4620.6 | G52: 4652.59 | I52: 8000000 | J52: 1.24 | L52: 750000 | M52: 9989.53 | N52: 8757 | O52: 0.1407479731
A53: 14 | B53: 5619.55 | C53: 5702.5 | D53: 5619.55 | E53: 5702.5 | F53: 4495.64 | G53: 4562 | I53: 9000000 | J53: 1.25 | L53: 800000 | M53: =ROUND(L53/$L$33*$M$33,2) -> 10655.5 | N53: 9340.8 | O53: 0.1407481158
A54: 15 | B54: 5640.36 | C54: 5609.18 | D54: 5640.36 | E54: 5609.18 | F54: 4512.29 | G54: 4487.34 | I54: 10000000 | J54: 1.26 | L54: 850000 | M54: =ROUND(L54/$L$33*$M$33,2) -> 11321.47 | N54: 9924.6 | O54: 0.1407482417
A55: 16 | B55: 5544.76 | C55: 5185.73 | D55: 5544.76 | E55: 5185.73 | F55: 4435.81 | G55: 4148.58 | I55: 20000000 | J55: 1.34 | L55: 900000 | M55: =ROUND(L55/$L$33*$M$33,2) -> 11987.44 | N55: 10508.4 | O55: 0.1407483537
A56: 17 | B56: 5580.31 | C56: 5270.89 | D56: 5580.31 | E56: 5270.89 | F56: 4464.25 | G56: 4216.71 | I56: 30000000 | J56: 1.39
A57: 18 | B57: 5736.82 | C57: 5108.35 | D57: 5736.82 | E57: 5108.35 | F57: 4589.46 | G57: 4086.68 | I57: 40000000 | J57: 1.42
A58: 19 | B58: 5927.72 | C58: 5183.31 | D58: 5927.72 | E58: 5183.31 | F58: 4742.18 | G58: 4146.65 | I58: 50000000 | J58: 1.45
A59: 20 | B59: 6143.42 | C59: 6137.94 | D59: 6143.42 | E59: 6137.94 | F59: 4914.74 | G59: 4910.35 | I59: 60000000 | J59: 1.46
A60: 21 | B60: 6635.99 | C60: 7927.31 | D60: 6635.99 | E60: 7927.31 | F60: 5308.79 | G60: 6341.85 | I60: 70000000 | J60: 1.48
A61: 22 | B61: 6925.76 | C61: 8305.22 | D61: 6925.76 | E61: 8305.22 | F61: 5540.61 | G61: 6644.18 | I61: 100000000 | J61: 1.53
A62: 23 | B62: 7385.39 | C62: 8692.98 | D62: 7385.39 | E62: 8692.98 | F62: 5908.31 | G62: 6954.38
A63: 24 | B63: 7685.16 | C63: 9099.44 | D63: 7685.16 | E63: 9099.44 | F63: 6148.13 | G63: 7279.55
A64: 25 | B64: 7985.79 | C64: 9520.71 | D64: 7985.79 | E64: 9520.71 | F64: 6388.63 | G64: 7616.57
A65: 26 | B65: 8514.92 | C65: 9890.15 | D65: 8514.92 | E65: 9890.15 | F65: 6811.94 | G65: 7912.12
A66: 27 | B66: 8891.67 | C66: 10341.98 | D66: 8891.67 | E66: 10341.98 | F66: 7113.34 | G66: 8273.58
A67: 28 | B67: 9404.1 | C67: 10824.18 | D67: 9404.1 | E67: 10824.18 | F67: 7523.28 | G67: 8659.34
A68: 29 | B68: 9879.58 | C68: 11310.78 | D68: 9879.58 | E68: 11310.78 | F68: 7903.66 | G68: 9048.62
A69: 30 | B69: 10321.9 | C69: 11845.85 | D69: 10321.9 | E69: 11845.85 | F69: 8257.52 | G69: 9476.68
A70: 31 | B70: 10746.97 | C70: 12395.33 | D70: 10746.97 | E70: 12395.33 | F70: 8597.58 | G70: 9916.26
A71: 32 | B71: =IF($A$37=$C$130,ROUND(C164*(1-DESC),2),ROUND(E164*(1-DESC),2)) -> 11407.85 | C71: =IF($A$37=$C$130,ROUND(D164*(1-DESC),2),ROUND(F164*(1-DESC),2)) -> 12953.61 | D71: 11407.85 | E71: 12953.61 | F71: 9126.28 | G71: 10362.89
A72: 33 | B72: 11810.3 | C72: 13522.61 | D72: 11810.3 | E72: =C72 -> 13522.61 | F72: 9448.24 | G72: 10818.09
A73: 34 | B73: 12471.01 | C73: 14131.82 | D73: 12471.01 | E73: 14131.82 | F73: 9976.81 | G73: 11305.46
A74: 35 | B74: 13159.76 | C74: 14777.37 | D74: 13159.76 | E74: 14777.37 | F74: 10527.81 | G74: 11821.9
A75: 36 | B75: 13722.32 | C75: 15439.07 | D75: 13722.32 | E75: 15439.07 | F75: 10977.86 | G75: 12351.26
A76: 37 | B76: 14470.51 | C76: 16177.24 | D76: 14470.51 | E76: 16177.24 | F76: 11576.41 | G76: 12941.79
A77: 38 | B77: 15242.11 | C77: 16888.78 | D77: 15242.11 | E77: 16888.78 | F77: =ROUND(D77*$G$37,2) -> 12193.69 | G77: 13511.02
A78: 39 | B78: 16074.31 | C78: 17654.27 | D78: 16074.31 | E78: 17654.27 | F78: 12859.45 | G78: 14123.42
A79: 40 | B79: 16639.62 | C79: 18447.52 | D79: 16639.62 | E79: 18447.52 | F79: 13311.7 | G79: 14758.02
A80: 41 | B80: 17258.75 | C80: 19279.53 | D80: 17258.75 | E80: 19279.53 | F80: 13807 | G80: 15423.62
A81: 42 | B81: 17928.43 | C81: 20145.38 | D81: 17928.43 | E81: 20145.38 | F81: 14342.74 | G81: 16116.3
A82: 43 | B82: 18644.36 | C82: 21046.09 | D82: 18644.36 | E82: 21046.09 | F82: 14915.49 | G82: 16836.87
A83: 44 | B83: 19446.63 | C83: 22113.24 | D83: 19446.63 | E83: 22113.24 | F83: 15557.3 | G83: 17690.59
A84: 45 | B84: 20321.05 | C84: 22904.92 | D84: 20321.05 | E84: 22904.92 | F84: 16256.84 | G84: 18323.94
A85: 46 | B85: 21279.71 | C85: 23766.68 | D85: 21279.71 | E85: 23766.68 | F85: 17023.77 | G85: 19013.34
A86: 47 | B86: 22332.32 | C86: 24978.27 | D86: 22332.32 | E86: 24978.27 | F86: 17865.86 | G86: 19982.62
A87: 48 | B87: 23476.86 | C87: 25982.21 | D87: 23476.86 | E87: 25982.21 | F87: 18781.49 | G87: 20785.77
A88: 49 | B88: 24731.91 | C88: 27064.99 | D88: 24731.91 | E88: 27064.99 | F88: 19785.53 | G88: 21651.99
A89: 50 | B89: 26111.56 | C89: 28213.77 | D89: 26111.56 | E89: 28213.77 | F89: 20889.25 | G89: 22571.02
A90: 51 | B90: 27601.36 | C90: 29444.11 | D90: 27601.36 | E90: 29444.11 | F90: 22081.09 | G90: 23555.29
A91: 52 | B91: 29229.15 | C91: 30766.47 | D91: 29229.15 | E91: 30766.47 | F91: 23383.32 | G91: 24613.18
A92: 53 | B92: 30983.19 | C92: 32186.83 | D92: 30983.19 | E92: 32186.83 | F92: 24786.55 | G92: 25749.46
A93: 54 | B93: 32886.54 | C93: 33700.5 | D93: 32886.54 | E93: 33700.5 | F93: 26309.23 | G93: 26960.4
A94: 55 | B94: 34934.28 | C94: 35523.65 | D94: 34934.28 | E94: 35523.65 | F94: 27947.42 | G94: 28418.92
A95: 56 | B95: 37144.98 | C95: 37925.97 | D95: 37144.98 | E95: 37925.97 | F95: 29715.98 | G95: 30340.78
A96: 57 | B96: 39535.25 | C96: 39369.45 | D96: 39535.25 | E96: 39369.45 | F96: 31628.2 | G96: 31495.56
A97: 58 | B97: 41233.01 | C97: 40941.64 | D97: 41233.01 | E97: 40941.64 | F97: 32986.41 | G97: 32753.31
A98: 59 | B98: 43910.59 | C98: 41611.52 | D98: 43910.59 | E98: 41611.52 | F98: 35128.47 | G98: 33289.22
A99: 60 | B99: 46534.35 | C99: 45012.21 | D99: 46534.35 | E99: 45012.21 | F99: 37227.48 | G99: 36009.77
A100: 61 | B100: 49046.86 | C100: 46917.18 | D100: 49046.86 | E100: 46917.18 | F100: 39237.49 | G100: 37533.74
A101: 62 | B101: 51693.9 | C101: 48924.25 | D101: 51693.9 | E101: 48924.25 | F101: 41355.12 | G101: 39139.4
A102: 63 | B102: 54447.12 | C102: 51015.78 | D102: 54447.12 | E102: 51015.78 | F102: 43557.7 | G102: 40812.62
A103: 64 | B103: =IF($A$37=$C$130,ROUND(C196*(1-DESC),2),ROUND(E196*(1-DESC),2)) -> 57354.08 | C103: =IF($A$37=$C$130,ROUND(D196*(1-DESC),2),ROUND(F196*(1-DESC),2)) -> 53249.12 | D103: 57354.08 | E103: 53249.12 | F103: 45883.26 | G103: 42599.3
A104: 65 | B104: 60318.52 | C104: 55505.47 | D104: =B104 -> 60318.52 | E104: =C104 -> 55505.47 | F104: 48254.82 | G104: =ROUND(E104*$G$37,2) -> 44404.38
A105: 66 | B105: 63487.47 | C105: 57987.56 | D105: 63487.47 | E105: 57987.56 | F105: 50789.98 | G105: 46390.05
A106: =+A105+1 -> 67 | B106: 66795.02 | C106: 60369.72 | D106: 66795.02 | E106: 60369.72 | F106: 53436.02 | G106: 48295.78
A107: 68 | B107: 70192.32 | C107: 62988.92 | D107: 70192.32 | E107: 62988.92 | F107: 56153.86 | G107: 50391.14
A108: 69 | B108: 73770.53 | C108: 65802.88 | D108: 73770.53 | E108: 65802.88 | F108: 59016.42 | G108: 52642.3
A109: 70 | B109: 77445.99 | C109: 68558.83 | D109: 77445.99 | E109: 68558.83 | F109: =ROUND(D109*$G$37,2) -> 61956.79 | G109: 54847.06
A110: 71 | B110: 81187.28 | C110: 71446.83 | D110: 81187.28 | E110: 71446.83 | F110: 64949.82 | G110: 57157.46
A111: 72 | B111: 85065.87 | C111: 74532.71 | D111: 85065.87 | E111: 74532.71 | F111: 68052.7 | G111: 59626.17
A112: 73 | B112: 89031.67 | C112: 77555.11 | D112: 89031.67 | E112: 77555.11 | F112: 71225.34 | G112: 62044.09
A113: 74 | B113: 93319.46 | C113: 80637.95 | D113: 93319.46 | E113: 80637.95 | F113: 74655.57 | G113: 64510.36
A114: 75 | B114: 97359.19 | C114: 83957.73 | D114: 97359.19 | E114: 83957.73 | F114: 77887.35 | G114: 67166.18
A115: 76 | B115: 102292.15 | C115: 87602.12 | D115: 102292.15 | E115: 87602.12 | F115: 81833.72 | G115: 70081.7
A116: 77 | B116: 107562.79 | C116: 91510.91 | D116: 107562.79 | E116: 91510.91 | F116: 86050.23 | G116: 73208.73
A117: 78 | B117: 113041.97 | C117: 95582.97 | D117: 113041.97 | E117: 95582.97 | F117: 90433.58 | G117: 76466.38
A118: 79 | B118: 119056.43 | C118: 99668 | D118: 119056.43 | E118: =C118 -> 99668 | F118: 95245.14 | G118: =ROUND(E118*$G$37,2) -> 79734.4
A119: 80 | B119: 124890.64 | C119: 103980.12 | D119: 124890.64 | E119: 103980.12 | F119: 99912.51 | G119: 83184.1
A120: 81 | B120: 131744.09 | C120: 108349.3 | D120: 131744.09 | E120: 108349.3 | F120: 105395.27 | G120: 86679.44
A121: 82 | B121: 138857.41 | C121: 112540.04 | D121: 138857.41 | E121: 112540.04 | F121: 111085.93 | G121: 90032.03
A122: 83 | B122: 146270.28 | C122: 117312.15 | D122: 146270.28 | E122: 117312.15 | F122: 117016.22 | G122: 93849.72
A123: 84 | B123: 154030.12 | C123: 121942.33 | D123: =B123 -> 154030.12 | E123: 121942.33 | F123: 123224.1 | G123: =ROUND(E123*$G$37,2) -> 97553.86
A124: 85 | B124: 162192.71 | C124: 126703.3 | D124: =B124 -> 162192.71 | E124: 126703.3 | F124: 129754.17 | G124: =ROUND(E124*$G$37,2) -> 101362.64
N128: Tarifa 2015-2016
C130: 0 | D130: Nueva | E130: 1 | F130: Renovada | O130: Nueva | Q130: Renovada
A131: E D A D | B131: Auxiliar por zona | C131: HOMBRES | D131: MUJERES | E131: HOMBRES | F131: MUJERES | N131: E D A D | O131: HOMBRES | P131: MUJERES | Q131: HOMBRES | R131: MUJERES
A132: 0 | B132: =+CONCATENATE(A132,$H$36) -> 0B | C132: =+VLOOKUP(B132,$B$226:$F$436,4,FALSE) -> 5775.215126 | D132: =+VLOOKUP(B132,$B$226:$F$436,5,FALSE) -> 5799.421212 | E132: =+VLOOKUP(B132,$B$226:$F$436,2,FALSE) -> 5775.215126 | F132: =+VLOOKUP(B132,$B$226:$F$436,3,FALSE) -> 5799.421212 | N132: 0 | O132: 4311.72973 | P132: 4329.801802 | Q132: 4311.72973 | R132: 4329.801802
A133: 1 | B133: =+CONCATENATE(A133,$H$36) -> 1B | C133: =+VLOOKUP(B133,$B$226:$F$436,4,FALSE) -> 5775.215126 | D133: =+VLOOKUP(B133,$B$226:$F$436,5,FALSE) -> 5799.421212 | E133: =+VLOOKUP(B133,$B$226:$F$436,2,FALSE) -> 5775.215126 | F133: =+VLOOKUP(B133,$B$226:$F$436,3,FALSE) -> 5799.421212 | N133: 1 | O133: 4311.72973 | P133: 4329.801802 | Q133: 4311.72973 | R133: 4329.801802
A134: =+A133+1 -> 2 | B134: =+CONCATENATE(A134,$H$36) -> 2B | C134: 5775.215126 | D134: 5799.421212 | E134: 5775.215126 | F134: 5799.421212 | N134: 2 | O134: 4311.72973 | P134: 4329.801802 | Q134: 4311.72973 | R134: 4329.801802
A135: =+A134+1 -> 3 | B135: =+CONCATENATE(A135,$H$36) -> 3B | C135: 5775.215126 | D135: 5799.421212 | E135: 5775.215126 | F135: 5799.421212 | N135: 3 | O135: 4311.72973 | P135: 4329.801802 | Q135: 4311.72973 | R135: 4329.801802
A136: 4 | B136: =+CONCATENATE(A136,$H$36) -> 4B | C136: 5775.215126 | D136: 5799.421212 | E136: 5775.215126 | F136: 5799.421212 | N136: 4 | O136: 4311.72973 | P136: 4329.801802 | Q136: 4311.72973 | R136: 4329.801802
A137: 5 | B137: =+CONCATENATE(A137,$H$36) -> 5B | C137: 5775.215126 | D137: 5799.421212 | E137: 5775.215126 | F137: 5799.421212 | N137: 5 | O137: 4311.72973 | P137: 4329.801802 | Q137: 4311.72973 | R137: 4329.801802
A138: 6 | B138: =+CONCATENATE(A138,$H$36) -> 6B | C138: 5775.215126 | D138: 5799.421212 | E138: 5775.215126 | F138: 5799.421212 | N138: 6 | O138: 4311.72973 | P138: 4329.801802 | Q138: 4311.72973 | R138: 4329.801802
A139: 7 | B139: =+CONCATENATE(A139,$H$36) -> 7B | C139: 5775.215126 | D139: 5799.421212 | E139: 5775.215126 | F139: 5799.421212 | N139: 7 | O139: 4311.72973 | P139: 4329.801802 | Q139: 4311.72973 | R139: 4329.801802
A140: 8 | B140: =+CONCATENATE(A140,$H$36) -> 8B | C140: 5775.215126 | D140: 5799.421212 | E140: 5775.215126 | F140: 5799.421212 | N140: 8 | O140: 4311.72973 | P140: 4329.801802 | Q140: 4311.72973 | R140: 4329.801802
A141: 9 | B141: =+CONCATENATE(A141,$H$36) -> 9B | C141: 5775.215126 | D141: 5799.421212 | E141: 5775.215126 | F141: 5799.421212 | N141: 9 | O141: 4311.72973 | P141: 4329.801802 | Q141: 4311.72973 | R141: 4329.801802
A142: 10 | B142: 10B | C142: 5775.215126 | D142: 5799.421212 | E142: 5775.215126 | F142: 5799.421212 | N142: 10 | O142: 4311.72973 | P142: 4329.801802 | Q142: 4311.72973 | R142: 4329.801802
A143: 11 | B143: 11B | C143: 5840.59328 | D143: 5796.52517 | E143: 5840.59328 | F143: 5796.52517 | N143: 11 | O143: 4360.540541 | P143: 4327.63964 | Q143: 4360.540541 | R143: 4327.63964
A144: 12 | B144: 12B | C144: 5818.872963 | D144: 5852.153316 | E144: 5818.872963 | F144: 5852.153316 | N144: 12 | O144: 4344.324324 | P144: 4369.171171 | Q144: 4344.324324 | R144: 4369.171171
A145: 13 | B145: 13B | C145: 5775.746067 | D145: 5815.735584 | E145: 5775.746067 | F145: 5815.735584 | N145: 13 | O145: 4312.126126 | P145: 4341.981982 | Q145: 4312.126126 | R145: 4341.981982
A146: 14 | B146: 14B | C146: 5619.552853 | D146: 5702.500331 | E146: 5619.552853 | F146: 5702.500331 | N146: 14 | O146: 4195.513514 | P146: 4257.441441 | Q146: 4195.513514 | R146: 4257.441441
A147: 15 | B147: 15B | C147: 5640.35609 | D147: 5609.175368 | E147: 5640.35609 | F147: 5609.175368 | N147: 15 | O147: 4211.045045 | P147: 4187.765766 | Q147: 4211.045045 | R147: 4187.765766
A148: 16 | B148: 16B | C148: 5544.762561 | D148: 5185.725718 | E148: 5544.762561 | F148: 5185.725718 | N148: 16 | O148: 4139.675676 | P148: 3871.621622 | Q148: 4139.675676 | R148: 3871.621622
A149: 17 | B149: 17B | C149: 5580.31148 | D149: 5270.893495 | E149: 5580.31148 | F149: 5270.893495 | N149: 17 | O149: 4166.216216 | P149: 3935.207207 | Q149: 4166.216216 | R149: 3935.207207
A150: 18 | B150: 18B | C150: 5736.818432 | D150: 5108.353122 | E150: 5736.818432 | F150: 5108.353122 | N150: 18 | O150: 4283.063063 | P150: 3813.855856 | Q150: 4283.063063 | R150: 3813.855856
A151: 19 | B151: 19B | C151: 5927.715886 | D151: 5183.31235 | E151: 5927.715886 | F151: 5183.31235 | N151: 19 | O151: 4425.585586 | P151: 3869.81982 | Q151: 4425.585586 | R151: 3869.81982
A152: 20 | B152: 20B | C152: 6143.422769 | D152: 6137.944422 | E152: 6143.422769 | F152: 6137.944422 | N152: 20 | O152: 4586.630631 | P152: 4582.540541 | Q152: 4586.630631 | R152: 4582.540541
A153: 21 | B153: 21B | C153: 6635.991294 | D153: 7927.312416 | E153: 6635.991294 | F153: 7927.312416 | N153: 21 | O153: 4954.378378 | P153: 5918.468468 | Q153: 4954.378378 | R153: 5918.468468
A154: 22 | B154: 22B | C154: 6925.764459 | D154: 8305.2218 | E154: 6925.764459 | F154: 8305.2218 | N154: 22 | O154: 5170.720721 | P154: 6200.612613 | Q154: 5170.720721 | R154: 6200.612613
A155: 23 | B155: 23B | C155: 7385.390503 | D155: 8692.977729 | E155: 7385.390503 | F155: 8692.977729 | N155: 23 | O155: 5513.873874 | P155: 6490.108108 | Q155: 5513.873874 | R155: 6490.108108
A156: 24 | B156: 24B | C156: 7685.155013 | D156: 9099.437264 | E156: 7685.155013 | F156: 9099.437264 | N156: 24 | O156: 5737.675676 | P156: 6793.567568 | Q156: 5737.675676 | R156: 6793.567568
A157: 25 | B157: 25B | C157: 7985.788336 | D157: 9520.714881 | E157: 7985.788336 | F157: 9520.714881 | N157: 25 | O157: 5962.126126 | P157: 7108.09009 | Q157: 5962.126126 | R157: 7108.09009
A158: 26 | B158: 26B | C158: 8514.919396 | D158: 9890.153342 | E158: 8514.919396 | F158: 9890.153342 | N158: 26 | O158: 6357.171171 | P158: 7383.90991 | Q158: 6357.171171 | R158: 7383.90991
A159: 27 | B159: 27B | C159: 8891.670363 | D159: 10341.98421 | E159: 8891.670363 | F159: 10341.98421 | N159: 27 | O159: 6638.45045 | P159: 7721.243243 | Q159: 6638.45045 | R159: 7721.243243
A160: 28 | B160: 28B | C160: 9404.100912 | D160: 10824.17525 | E160: 9404.100912 | F160: 10824.17525 | N160: 28 | O160: 7021.027027 | P160: 8081.243243 | Q160: 7021.027027 | R160: 8081.243243
A161: 29 | B161: 29B | C161: 9879.582788 | D161: 11310.78275 | E161: 9879.582788 | F161: 11310.78275 | N161: 29 | O161: 7376.018018 | P161: 8444.540541 | Q161: 7376.018018 | R161: 8444.540541
A162: 30 | B162: 30B | C162: 10321.90498 | D162: 11845.8507 | E162: 10321.90498 | F162: 11845.8507 | N162: 30 | O162: 7706.252252 | P162: 8844.018018 | Q162: 7706.252252 | R162: 8844.018018
A163: 31 | B163: 31B | C163: 10746.97159 | D163: 12395.32645 | E163: 10746.97159 | F163: 12395.32645 | N163: 31 | O163: 8023.603604 | P163: 9254.252252 | Q163: 8023.603604 | R163: 9254.252252
A164: 32 | B164: 32B | C164: 11407.84844 | D164: 12953.61101 | E164: 11407.84844 | F164: 12953.61101 | N164: 32 | O164: 8517.009009 | P164: 9671.063063 | Q164: 8517.009009 | R164: 9671.063063
A165: 33 | B165: 33B | C165: 11810.30178 | D165: 13522.61091 | E165: 11810.30178 | F165: 13522.61091 | N165: 33 | O165: 8817.477477 | P165: 10095.87387 | Q165: 8817.477477 | R165: 10095.87387
A166: 34 | B166: 34B | C166: 12471.00969 | D166: 14131.81754 | E166: 12471.00969 | F166: 14131.81754 | N166: 34 | O166: 9310.756757 | P166: 10550.7027 | Q166: 9310.756757 | R166: 10550.7027
A167: 35 | B167: 35B | C167: 13159.76095 | D167: 14777.3695 | E167: 13159.76095 | F167: 14777.3695 | N167: 35 | O167: 9824.972973 | P167: 11032.66667 | Q167: 9824.972973 | R167: 11032.66667
A168: 36 | B168: 36B | C168: 13722.31716 | D168: 15439.0669 | E168: 13722.31716 | F168: 15439.0669 | N168: 36 | O168: 10244.97297 | P168: 11526.68468 | Q168: 10244.97297 | R168: 11526.68468
A169: 37 | B169: 37B | C169: 14470.50969 | D169: 16177.24394 | E169: 14470.50969 | F169: 16177.24394 | N169: 37 | O169: 10803.56757 | P169: 12077.8018 | Q169: 10803.56757 | R169: 12077.8018
A170: 38 | B170: 38B | C170: 15242.11189 | D170: 16888.7774 | E170: 15242.11189 | F170: 16888.7774 | N170: 38 | O170: 11379.63964 | P170: 12609.02703 | Q170: 11379.63964 | R170: 12609.02703
A171: 39 | B171: 39B | C171: 16074.31377 | D171: 17654.27378 | E171: 16074.31377 | F171: 17654.27378 | N171: 39 | O171: 12000.95495 | P171: 13180.54054 | Q171: 12000.95495 | R171: 13180.54054
A172: 40 | B172: 40B | C172: 16639.62123 | D172: 18447.52389 | E172: 16639.62123 | F172: 18447.52389 | N172: 40 | O172: 12423.00901 | P172: 13772.77477 | Q172: 12423.00901 | R172: 13772.77477
A173: 41 | B173: 41B | C173: 17258.7468 | D173: 19279.53271 | E173: 17258.7468 | F173: 19279.53271 | N173: 41 | O173: 12885.24324 | P173: 14393.94595 | Q173: 12885.24324 | R173: 14393.94595
A174: 42 | B174: 42B | C174: 17928.43245 | D174: 20145.37695 | E174: 17928.43245 | F174: 20145.37695 | N174: 42 | O174: 13385.22523 | P174: 15040.37838 | Q174: 13385.22523 | R174: 15040.37838
A175: 43 | B175: 43B | C175: 18644.35823 | D175: 21046.09437 | E175: 18644.35823 | F175: 21046.09437 | N175: 43 | O175: 13919.72973 | P175: 15712.84685 | Q175: 13919.72973 | R175: 15712.84685
A176: 44 | B176: 44B | C176: 19446.63435 | D176: 22113.23768 | E176: 19446.63435 | F176: 22113.23768 | N176: 44 | O176: 14518.7027 | P176: 16509.56757 | Q176: 14518.7027 | R176: 16509.56757
A177: 45 | B177: 45B | C177: 20321.04605 | D177: 22904.91911 | E177: 20321.04605 | F177: 22904.91911 | N177: 45 | O177: 15171.53153 | P177: 17100.63063 | Q177: 15171.53153 | R177: 17100.63063
A178: 46 | B178: 46B | C178: 21279.70844 | D178: 23766.68476 | E178: 21279.70844 | F178: 23766.68476 | N178: 46 | O178: 15887.26126 | P178: 17744.01802 | Q178: 15887.26126 | R178: 17744.01802
A179: 47 | B179: 47B | C179: 22332.32328 | D179: 24978.26818 | E179: 22332.32328 | F179: 24978.26818 | N179: 47 | O179: 16673.13514 | P179: 18648.57658 | Q179: 16673.13514 | R179: 18648.57658
A180: 48 | B180: 48B | C180: 23476.86333 | D180: 25982.20537 | E180: 23476.86333 | F180: 25982.20537 | N180: 48 | O180: 17527.63964 | P180: 19398.10811 | Q180: 17527.63964 | R180: 19398.10811
A181: 49 | B181: 49B | C181: 24731.91152 | D181: 27064.98732 | E181: 24731.91152 | F181: 27064.98732 | N181: 49 | O181: 18464.64865 | P181: 20206.5045 | Q181: 18464.64865 | R181: 20206.5045
A182: 50 | B182: 50B | C182: 26111.56193 | D182: 28213.77489 | E182: 26111.56193 | F182: 28213.77489 | N182: 50 | O182: 19494.68468 | P182: 21064.18018 | Q182: 19494.68468 | R182: 21064.18018
A183: 51 | B183: 51B | C183: 27601.35848 | D183: 29444.11019 | E183: 27601.35848 | F183: 29444.11019 | N183: 51 | O183: 20606.95495 | P183: 21982.73874 | Q183: 20606.95495 | R183: 21982.73874
A184: 52 | B184: 52B | C184: 29229.15145 | D184: 30766.46723 | E184: 29229.15145 | F184: 30766.46723 | N184: 52 | O184: 21822.25225 | P184: 22970 | Q184: 21822.25225 | R184: 22970
A185: 53 | B185: 53B | C185: 30983.18773 | D185: 32186.83117 | E185: 30983.18773 | F185: 32186.83117 | N185: 53 | O185: 23131.8018 | P185: 24030.43243 | Q185: 23131.8018 | R185: 24030.43243
A186: 54 | B186: 54B | C186: 32886.53912 | D186: 33700.49594 | E186: 32886.53912 | F186: 33700.49594 | N186: 54 | O186: 24552.82883 | P186: 25160.52252 | Q186: 24552.82883 | R186: 25160.52252
A187: 55 | B187: 55B | C187: 34934.28235 | D187: 35523.65109 | E187: 34934.28235 | F187: 35523.65109 | N187: 55 | O187: 26081.65766 | P187: 26521.67568 | Q187: 26081.65766 | R187: 26521.67568
A188: 56 | B188: 56B | C188: 37144.97623 | D188: 37925.96644 | E188: 37144.97623 | F188: 37925.96644 | N188: 56 | O188: 27732.14414 | P188: 28315.22523 | Q188: 27732.14414 | R188: 28315.22523
A189: 57 | B189: 57B | C189: 39535.24887 | D189: 39369.45045 | E189: 39535.24887 | F189: 39369.45045 | N189: 57 | O189: 29516.7027 | P189: 29392.91892 | Q189: 29516.7027 | R189: 29392.91892
A190: 58 | B190: 58B | C190: 41233.00539 | D190: 40941.6394 | E190: 41233.00539 | F190: 40941.6394 | N190: 58 | O190: 30784.23423 | P190: 30566.7027 | Q190: 30784.23423 | R190: 30566.7027
A191: 59 | B191: 59B | C191: 43910.58955 | D191: 41611.51812 | E191: 43910.58955 | F191: 41611.51812 | N191: 59 | O191: 32783.2973 | P191: 31066.82883 | Q191: 32783.2973 | R191: 31066.82883
A192: 60 | B192: 60B | C192: 58578.53783 | D192: 56662.42833 | E192: 46534.35248 | F192: 45012.20942 | N192: 60 | O192: 43731.05882 | P192: 42300.61176 | Q192: 34739.62617 | R192: 33603.28972
A193: 61 | B193: 61B | C193: 61741.34455 | D193: 59060.44911 | E193: 49046.86249 | F193: 46917.1792 | N193: 61 | O193: 46092.21176 | P193: 44090.82353 | Q193: 36615.30841 | R193: 35025.42056
A194: 62 | B194: 62B | C194: 65073.49786 | D194: 61587.00057 | E194: 51693.90017 | F194: 48924.25279 | N194: 62 | O194: 48579.78824 | P194: 45976.98824 | Q194: 38591.42056 | R194: 36523.7757
A195: 63 | B195: 63B | C195: 68539.3193 | D195: 64219.86248 | E195: 54447.12281 | F195: 51015.7786 | N195: 63 | O195: 51167.15294 | P195: 47942.51765 | Q195: 40646.80374 | R195: 38085.17757
A196: 64 | B196: 64B | C196: 72198.66169 | D196: 67031.24273 | E196: 57354.07704 | F196: 53249.11806 | N196: 64 | O196: 53898.98824 | P196: 50041.31765 | Q196: 42816.95327 | R196: 39752.4486
A197: 65 | B197: =+CONCATENATE(A197,$H$36) -> 65B | C197: =+VLOOKUP(B197,$B$226:$F$436,4,FALSE) -> 75930.36956 | D197: =+VLOOKUP(B197,$B$226:$F$436,5,FALSE) -> 69871.58809 | E197: =+VLOOKUP(B197,$B$226:$F$436,2,FALSE) -> 60318.51787 | F197: =+VLOOKUP(B197,$B$226:$F$436,3,FALSE) -> 55505.46717 | N197: 65 | O197: 56684.84706 | P197: 52161.74118 | Q197: 45030.01869 | R197: 41436.8972
A198: 66 | B198: 66B | C198: 79919.51702 | D198: 72996.10036 | E198: 63487.46679 | F198: 57987.55636 | N198: 66 | O198: 59662.89412 | P198: 54494.30588 | Q198: 47395.75701 | R198: 43289.86916
A199: =+A198+1 -> 67 | B199: 67B | C199: 84083.14851 | D199: 75994.82401 | E199: 66795.02452 | F199: 60369.72001 | N199: 67 | O199: 62771.2 | P199: 56732.96471 | Q199: 49864.97196 | R199: 45068.24299
A200: 68 | B200: 68B | C200: 88359.74077 | D200: 79291.92923 | E200: 70192.31743 | F200: 62988.91574 | N200: 68 | O200: 65963.83529 | P200: 59194.37647 | Q200: 52401.17757 | R200: 47023.57009
A201: 69 | B201: 69B | C201: 92864.08259 | D201: 82834.2135 | E201: 73770.5329 | F201: 65802.87989 | N201: 69 | O201: 69326.49412 | P201: 61838.82353 | Q201: 55072.4486 | R201: 49124.29907
A202: 70 | B202: 70B | C202: 97490.84059 | D202: 86303.47041 | E202: 77445.99486 | F202: 68558.83164 | N202: 70 | O202: 72780.54118 | P202: 64428.75294 | Q202: 57816.31776 | R202: 51181.71963
A203: 71 | B203: 71B | C203: 102200.4596 | D203: 89938.95362 | E203: 81187.28098 | F203: 71446.83232 | N203: 71 | O203: 76296.44706 | P203: 67142.77647 | Q203: 60609.3271 | R203: 53337.71963
A204: 72 | B204: 72B | C204: 107082.9237 | D204: 93823.52413 | E204: 85065.87396 | F204: 74532.70608 | N204: 72 | O204: 79941.38824 | P204: 70042.75294 | Q204: 63504.84112 | R204: 55641.43925
A205: 73 | B205: 73B | C205: 112075.1652 | D205: 97628.19633 | E205: 89031.6733 | F205: 77555.10924 | N205: 73 | O205: 83668.28235 | P205: 72883.08235 | Q205: 66465.45794 | R205: 57897.7757
A206: 74 | B206: 74B | C206: 117472.7291 | D206: 101508.9532 | E206: 93319.45771 | F206: 80637.95344 | N206: 74 | O206: 87697.76471 | P206: 75780.21176 | Q206: 69666.4486 | R206: 60199.23364
A207: 75 | B207: 75B | C207: 122558.0435 | D207: 105687.9655 | E207: 97359.19344 | F207: 83957.72957 | N207: 75 | O207: 91494.14118 | P207: 78900 | Q207: 72682.26168 | R207: 62677.57009
A208: 76 | B208: 76B | C208: 128767.765 | D208: 110275.6095 | E208: 102292.1498 | F208: 87602.11973 | N208: 76 | O208: 96129.92941 | P208: 82324.84706 | Q208: 76364.8972 | R208: 65398.24299
A209: 77 | B209: 77B | C209: 135402.5707 | D209: 115196.0844 | E209: 107562.7898 | F209: 91510.90819 | N209: 77 | O209: 101083.0588 | P209: 85998.16471 | Q209: 80299.62617 | R209: 68316.29907
A210: 78 | B210: 78B | C210: 142299.8904 | D210: 120322.0886 | E210: 113041.969 | F210: 95582.96762 | N210: 78 | O210: 106232.1647 | P210: 89824.91765 | Q210: 84390.03738 | R210: 71356.24299
A211: 79 | B211: 79B | C211: 149871.0349 | D211: 125464.4192 | E211: 119056.4296 | F211: 99667.99658 | N211: 79 | O211: 111884.3059 | P211: 93663.85882 | Q211: 88880.05607 | R211: 74405.86916
A212: 80 | B212: 80B | C212: 157215.2809 | D212: 130892.6187 | E212: 124890.6437 | F212: 103980.1176 | N212: 80 | O212: 117367.0588 | P212: 97716.21176 | Q212: 93235.51402 | R212: 77625.02804
... 218 more rows

Sheet TITULAR (hidden)
B1: GASTOS MÉDICOS MAYORES INDIVIDUAL/FAMILIAR | I1: REGION COBERTURA BASICA | N1: Prima riesgo dental incremental | O1: 101 | R1: Prima riesgo visión opcional | S1: 114.67
I2: =IF(ISERROR(VLOOKUP(E3,VALORES!$A$6:$B$11,2,FALSE)),"REGION NO VALIDA",VLOOKUP(E3,VALORES!$A$6:$B$11,2,FALSE)) -> CHIHUAHUA, NUEVO LEON, TAMAULIPAS | N2: Gastos | O2: 0.57455 | R2: Gastos | S2: 0.51314
B3: REGIÓN: | E3: =+COTIZACION!D15 -> 4 | F3: =IF(E3>7,"NO PROCEDE"," ") ->  | G3: FACTORES | O3: =+O1/(1-O2) -> 237.3956987 | S3: =+S1/(1-S2) -> 235.5297211
B5: SUMA ASEGURADA: | E5: =+COTIZACION!D11 -> 10000000 | G5: =VLOOKUP(E5,FACTORES!$I$33:$J$124,2) -> 1.26 | N5: Asistencias | O5: 102.24
B6: DEDUCIBLE: | E6: =+COTIZACION!D12 -> 10000 | G6: =VLOOKUP(E6,FACTORES!$A$2:$B$29,2,0) -> 0.88 | N6: Gastos | O6: 0.4855
B7: ELIMINACION DEDUCIBLE | E7: =+COTIZACION!D16 -> SI | G7: =IF(H7="SI",VLOOKUP(E6,FACTORES!I5:J18,2,0),0) -> 760.1023644 | H7: =+IF(COTIZACION!D12>50000,"NO",COTIZACION!D16) -> SI | O7: =+O5/(1-O6) -> 198.7172012
B8: COASEGURO: | E8: =+COTIZACION!D13 -> 0.1 | G8: =VLOOKUP(E8,FACTORES!$C$2:$D$6,2) -> 1
B9: CATALOGO:
B10: SUMA ASEGURADA PARTO O CESAREA | E10: =+COTIZACION!D17 -> 15000
B11: SEGURO DE ENFERMEDADES GRAVES | E11: =+COTIZACION!D19 -> 10000 | G11: =IF(E11="NO",0,IF(SUM(COTIZACION!A27:A34)>=1,VLOOKUP(E11,FACTORES!$L$33:$M$55,2,0)*(1-DESC),0)) -> 0
B12: COBERTURA DE VISION | E12: =+COTIZACION!D18 -> SI | G12: =IF(E12="NO",0,G23) -> 235.53
F13: ZONA | K13: Comisión | L13: 0.265 | O13: Comisión | P13: 0.265 | S13: A
B14: EMERGENCIA EXTRANJERO: | K14: G administración | L14: 0.1 | O14: G administración | P14: 0.1 | S14: S
B15: COBER TOTAL EXTRANJERO: | K15: Utilidad | L15: 0.14845 | O15: Utilidad | P15: 0.226
B16: ZONA | G16: =+COTIZACION!D15 -> 4 | K16: B
B17: FORMA DE PAGO: | E17: =+COTIZACION!C21 -> 0 | G17: 0 | K17: C | M17: 493.8252 | N17: PaQ Adicional | O17: =+SUM(O18:O31) -> 288.108 | P17: =+P13+P14+P15 -> 0.591 | Q17: 617.9004
B18: PARTO | F18: 0.17 | G18: =(433.18*(1-DESC))*1.14*0+K18*(1-DESC) -> 562.98 | H18: *BUSCARV(G16,FACTORES!$F$30:$G$35,2,0) | K18: =ROUND(M18,2) -> 562.98 | L18: =240.28*1.14 -> 273.9192 | M18: =L18/(1-L13-L14-L15) -> 562.9826328 | N18: Legrado | O18: 0 | P18: =1-P17 -> 0.409 | S18: 493.8252 | T18: =(M18/S18)-1 -> 0.1400443574
B19: DENTAL | F19: 0.14 | G19: =288*0+181.98*0+208.25*0+K19*(1-DESC) -> 237.4 | K19: =ROUND(O3,2) -> 237.4 | M19: =(M18/M17)-1 -> 0.1400443574 | N19: Donacion de organos | O19: 48.98 | S19: 208.25 | T19: =(K19/S19)-1 -> 0.1399759904
B20: PAQ_ADIC | F20: 0.17 | G20: =(528.12*(1-DESC))*1.17*0+K20*(1-DESC) -> 704.42 | K20: =ROUND(M21,2) -> 704.42 | N20: Donacion de organos | O20: 0 | S20: 617.9004 | T20: 0.1400219194
B21: ASIST_IKE | F21: 0.14 | G21: =153.74*0+174.32*0+K21*(1-DESC) -> 198.72 | H21: Nuevo 153.74 | I21: Anterior 125.5 | K21: =ROUND(O7,2) -> 198.72 | M21: =+O17/P18 -> 704.4205379 | N21: Renta | O21: 8.16 | Q21: =(M21/Q17)-1 -> 0.1400227899 | S21: 174.32 | T21: 0.1399724644
B22: EDUCA | G22: =88*(1-DESC)*0 -> 0 | M22: 617.9004 | N22: Enfermedades catastroficas | O22: 0 | S22: 0
B23: VISION | G23: =206.61*0+K23*(1-DESC) -> 235.53 | K23: =ROUND(S3,2) -> 235.53 | M23: =(M21/M22)-1 -> 0.1400227899 | N23: Transtornos | O23: 0 | S23: 206.61 | T23: 0.1399738638
D24: PRIMA BASE | F24: PRIMA TARIFA | H24: R P FRAC | I24: =G17 -> 0 | J24: PRIMA TOTAL | N24: Lente intracular | O24: 0
D25: REGIONALIZADA | F25: REGIONALIZADA | H25: DER POLIZA | I25: 700 | J25: IVA | K25: =+COTIZACION!D20 -> 0.16 | N25: terapia | O25: 10.39
B26: EDAD | D26: HOMBRE | E26: MUJER | F26: HOMBRE | G26: MUJER | H26: HOMBRE | I26: MUJER | J26: HOMBRE | K26: MUJER | O26: 13.5
B27: 0 | D27: =FACTORES!F39 -> 4620.18 | E27: =FACTORES!G39 -> 4639.54 | F27: =ROUND(D27*$G$5*$G$6*$G$8,2)+ADIC+DENTAL+ENFGVES+IKE+CVISION+DEDXACC -> 7259.032364 | G27: =ROUND(E27*$G$5*$G$6*$G$8,2)+ADIC+DENTAL+ENFGVES+IKE+CVISION+DEDXACC -> 7280.492364 | H27: =(F27*(1+$I$24))+$I$25 -> 7959.032364 | I27: =(G27*(1+$I$24))+$I$25 -> 7980.492364 | J27: =H27*(1+$K$25) -> 9232.477543 | K27: =I27*(1+$K$25) -> 9257.371143 | O27: 13.5
B28: =+B27+1 -> 1 | D28: =FACTORES!F40 -> 4620.18 | E28: =FACTORES!G40 -> 4639.54 | F28: 7259.032364 | G28: 7280.492364 | H28: =(F28*(1+$I$24))+$I$25 -> 7959.032364 | I28: =(G28*(1+$I$24))+$I$25 -> 7980.492364 | J28: =H28*(1+$K$25) -> 9232.477543 | K28: =I28*(1+$K$25) -> 9257.371143 | O28: 20.5
B29: =+B28+1 -> 2 | D29: =FACTORES!F41 -> 4620.18 | E29: =FACTORES!G41 -> 4639.54 | F29: 7259.032364 | G29: 7280.492364 | H29: 7959.032364 | I29: 7980.492364 | J29: 9232.477543 | K29: 9257.371143 | O29: 56
B30: 3 | D30: =FACTORES!F42 -> 4620.18 | E30: =FACTORES!G42 -> 4639.54 | F30: 7259.032364 | G30: 7280.492364 | H30: 7959.032364 | I30: 7980.492364 | J30: 9232.477543 | K30: 9257.371143 | O30: 0.078
B31: 4 | D31: =FACTORES!F43 -> 4620.18 | E31: =FACTORES!G43 -> 4639.54 | F31: 7259.032364 | G31: 7280.492364 | H31: 7959.032364 | I31: 7980.492364 | J31: 9232.477543 | K31: 9257.371143 | O31: 117
B32: 5 | D32: =FACTORES!F44 -> 4620.18 | E32: =FACTORES!G44 -> 4639.54 | F32: 7259.032364 | G32: 7280.492364 | H32: 7959.032364 | I32: 7980.492364 | J32: 9232.477543 | K32: 9257.371143
B33: 6 | D33: =FACTORES!F45 -> 4620.18 | E33: =FACTORES!G45 -> 4639.54 | F33: 7259.032364 | G33: 7280.492364 | H33: 7959.032364 | I33: 7980.492364 | J33: 9232.477543 | K33: 9257.371143
B34: 7 | D34: =FACTORES!F46 -> 4620.18 | E34: =FACTORES!G46 -> 4639.54 | F34: 7259.032364 | G34: 7280.492364 | H34: 7959.032364 | I34: 7980.492364 | J34: 9232.477543 | K34: 9257.371143
B35: 8 | D35: =FACTORES!F47 -> 4620.18 | E35: =FACTORES!G47 -> 4639.54 | F35: 7259.032364 | G35: 7280.492364 | H35: 7959.032364 | I35: 7980.492364 | J35: 9232.477543 | K35: 9257.371143
B36: 9 | D36: =FACTORES!F48 -> 4620.18 | E36: =FACTORES!G48 -> 4639.54 | F36: 7259.032364 | G36: 7280.492364 | H36: 7959.032364 | I36: 7980.492364 | J36: 9232.477543 | K36: 9257.371143
B37: 10 | D37: =FACTORES!F49 -> 4620.18 | E37: =FACTORES!G49 -> 4639.54 | F37: 7259.032364 | G37: 7280.492364 | H37: 7959.032364 | I37: 7980.492364 | J37: 9232.477543 | K37: 9257.371143
B38: 11 | D38: =FACTORES!F50 -> 4672.47 | E38: =FACTORES!G50 -> 4637.22 | F38: 7317.002364 | G38: 7277.922364 | H38: 8017.002364 | I38: 7977.922364 | J38: 9299.722743 | K38: 9254.389943
B39: 12 | D39: =FACTORES!F51 -> 4655.1 | E39: =FACTORES!G51 -> 4681.72 | F39: 7297.742364 | G39: 7327.262364 | H39: 7997.742364 | I39: 8027.262364 | J39: 9277.381143 | K39: 9311.624343
B40: 13 | D40: =FACTORES!F52 -> 4620.6 | E40: =FACTORES!G52 -> 4652.59 | F40: 7259.492364 | G40: 7294.962364 | H40: 7959.492364 | I40: 7994.962364 | J40: 9233.011143 | K40: 9274.156343
B41: 14 | D41: =FACTORES!F53 -> 4495.64 | E41: =FACTORES!G53 -> 4562 | F41: 7120.942364 | G41: 7194.522364 | H41: 7820.942364 | I41: 7894.522364 | J41: 9072.293143 | K41: 9157.645943
B42: 15 | D42: =FACTORES!F54 -> 4512.29 | E42: =FACTORES!G54 -> 4487.34 | F42: 7139.402364 | G42: 7111.732364 | H42: 7839.402364 | I42: 7811.732364 | J42: 9093.706743 | K42: 9061.609543
B43: 16 | D43: =FACTORES!F55 -> 4435.81 | E43: =FACTORES!G55 -> 4148.58 | F43: 7054.602364 | G43: 6736.122364 | H43: 7754.602364 | I43: 7436.122364 | J43: 8995.338743 | K43: 8625.901943
B44: 17 | D44: =FACTORES!F56 -> 4464.25 | E44: =FACTORES!G56 -> 4216.71 | F44: 7086.132364 | G44: 6811.662364 | H44: 7786.132364 | I44: 7511.662364 | J44: 9031.913543 | K44: 8713.528343
B45: 18 | D45: =FACTORES!F57 -> 4589.46 | E45: =FACTORES!G57 -> 4086.68 | F45: =ROUND(D45*$G$5*$G$6*$G$8,2)+ADIC+DENTAL+ENFGVES+IKE+CVISION+DEDXACC -> 7224.962364 | G45: =ROUND(E45*$G$5*$G$6*$G$8,2)+ADIC+DENTAL+ENFGVES+IKE+CVISION+PARTO+DEDXACC -> 7230.462364 | H45: 7924.962364 | I45: 7930.462364 | J45: 9192.956343 | K45: 9199.336343
B46: 19 | D46: =FACTORES!F58 -> 4742.18 | E46: =FACTORES!G58 -> 4146.65 | F46: 7394.302364 | G46: 7296.962364 | H46: 8094.302364 | I46: 7996.962364 | J46: 9389.390743 | K46: 9276.476343
B47: 20 | D47: =FACTORES!F59 -> 4914.74 | E47: =FACTORES!G59 -> 4910.35 | F47: 7585.632364 | G47: 8143.752364 | H47: 8285.632364 | I47: 8843.752364 | J47: 9611.333543 | K47: 10258.75274
B48: 21 | D48: =FACTORES!F60 -> 5308.79 | E48: =FACTORES!G60 -> 6341.85 | F48: 8022.562364 | G48: 9730.992364 | H48: 8722.562364 | I48: 10430.99236 | J48: 10118.17234 | K48: 12099.95114
B49: 22 | D49: =FACTORES!F61 -> 5540.61 | E49: =FACTORES!G61 -> 6644.18 | F49: 8279.602364 | G49: 10066.22236 | H49: 8979.602364 | I49: 10766.22236 | J49: 10416.33874 | K49: 12488.81794
B50: 23 | D50: =FACTORES!F62 -> 5908.31 | E50: =FACTORES!G62 -> 6954.38 | F50: 8687.302364 | G50: 10410.17236 | H50: 9387.302364 | I50: 11110.17236 | J50: 10889.27074 | K50: 12887.79994
B51: 24 | D51: =FACTORES!F63 -> 6148.13 | E51: =FACTORES!G63 -> 7279.55 | F51: 8953.222364 | G51: 10770.72236 | H51: 9653.222364 | I51: 11470.72236 | J51: 11197.73794 | K51: 13306.03794
B52: 25 | D52: =FACTORES!F64 -> 6388.63 | E52: =FACTORES!G64 -> 7616.57 | F52: 9219.882364 | G52: 11144.40236 | H52: 9919.882364 | I52: 11844.40236 | J52: 11507.06354 | K52: 13739.50674
B53: 26 | D53: =FACTORES!F65 -> 6811.94 | E53: =FACTORES!G65 -> 7912.12 | F53: 9689.252364 | G53: 11472.11236 | H53: 10389.25236 | I53: 12172.11236 | J53: 12051.53274 | K53: 14119.65034
B54: 27 | D54: =FACTORES!F66 -> 7113.34 | E54: =FACTORES!G66 -> 8273.58 | F54: 10023.44236 | G54: 11872.90236 | H54: 10723.44236 | I54: 12572.90236 | J54: 12439.19314 | K54: 14584.56674
B55: 28 | D55: =FACTORES!F67 -> 7523.28 | E55: =FACTORES!G67 -> 8659.34 | F55: 10477.98236 | G55: 12300.63236 | H55: 11177.98236 | I55: 13000.63236 | J55: 12966.45954 | K55: 15080.73354
B56: 29 | D56: =FACTORES!F68 -> 7903.66 | E56: =FACTORES!G68 -> 9048.62 | F56: 10899.75236 | G56: 12732.26236 | H56: 11599.75236 | I56: 13432.26236 | J56: 13455.71274 | K56: 15581.42434
B57: 30 | D57: =FACTORES!F69 -> 8257.52 | E57: =FACTORES!G69 -> 9476.68 | F57: 11292.11236 | G57: 13206.89236 | H57: 11992.11236 | I57: 13906.89236 | J57: 13910.85034 | K57: 16131.99514
B58: 31 | D58: =FACTORES!F70 -> 8597.58 | E58: =FACTORES!G70 -> 9916.26 | F58: 11669.17236 | G58: 13694.30236 | H58: 12369.17236 | I58: 14394.30236 | J58: 14348.23994 | K58: 16697.39074
B59: 32 | D59: =FACTORES!F71 -> 9126.28 | E59: =FACTORES!G71 -> 10362.89 | F59: 12255.39236 | G59: 14189.52236 | H59: 12955.39236 | I59: 14889.52236 | J59: 15028.25514 | K59: 17271.84594
B60: 33 | D60: =FACTORES!F72 -> 9448.24 | E60: =FACTORES!G72 -> 10818.09 | F60: 12612.38236 | G60: 14694.25236 | H60: 13312.38236 | I60: 15394.25236 | J60: 15442.36354 | K60: 17857.33274
B61: 34 | D61: =FACTORES!F73 -> 9976.81 | E61: =FACTORES!G73 -> 11305.46 | F61: 13198.46236 | G61: 15234.64236 | H61: 13898.46236 | I61: 15934.64236 | J61: 16122.21634 | K61: 18484.18514
B62: 35 | D62: =FACTORES!F74 -> 10527.81 | E62: =FACTORES!G74 -> 11821.9 | F62: 13809.41236 | G62: 15807.27236 | H62: 14509.41236 | I62: 16507.27236 | J62: 16830.91834 | K62: 19148.43594
B63: 36 | D63: =FACTORES!F75 -> 10977.86 | E63: =FACTORES!G75 -> 12351.26 | F63: 14308.42236 | G63: 16394.23236 | H63: 15008.42236 | I63: 17094.23236 | J63: 17409.76994 | K63: 19829.30954
B64: 37 | D64: =FACTORES!F76 -> 11576.41 | E64: =FACTORES!G76 -> 12941.79 | F64: 14972.09236 | G64: 17049.01236 | H64: 15672.09236 | I64: 17749.01236 | J64: 18179.62714 | K64: 20588.85434
B65: 38 | D65: =FACTORES!F77 -> 12193.69 | E65: =FACTORES!G77 -> 13511.02 | F65: 15656.53236 | G65: 17680.17236 | H65: 16356.53236 | I65: 18380.17236 | J65: 18973.57754 | K65: 21320.99994
B66: 39 | D66: =FACTORES!F78 -> 12859.45 | E66: =FACTORES!G78 -> 14123.42 | F66: 16394.73236 | G66: 18359.20236 | H66: 17094.73236 | I66: 19059.20236 | J66: 19829.88954 | K66: 22108.67474
B67: 40 | D67: =FACTORES!F79 -> 13311.7 | E67: =FACTORES!G79 -> 14758.02 | F67: 16896.18236 | G67: 19062.84236 | H67: 17596.18236 | I67: 19762.84236 | J67: 20411.57154 | K67: 22924.89714
B68: 41 | D68: =FACTORES!F80 -> 13807 | E68: =FACTORES!G80 -> 15423.62 | F68: 17445.37236 | G68: 19800.86236 | H68: 18145.37236 | I68: 20500.86236 | J68: 21048.63194 | K68: 23781.00034
B69: 42 | D69: =FACTORES!F81 -> 14342.74 | E69: =FACTORES!G81 -> 16116.3 | F69: 18039.40236 | G69: 20568.90236 | H69: 18739.40236 | I69: 21268.90236 | J69: 21737.70674 | K69: 24671.92674
B70: 43 | D70: =FACTORES!F82 -> 14915.49 | E70: =FACTORES!G82 -> 16836.87 | F70: 18674.47236 | G70: 21367.87236 | H70: 19374.47236 | I70: 22067.87236 | J70: 22474.38794 | K70: 25598.73194
B71: 44 | D71: =FACTORES!F83 -> 15557.3 | E71: =FACTORES!G83 -> 17690.59 | F71: 19386.10236 | G71: 22314.48236 | H71: 20086.10236 | I71: 23014.48236 | J71: 23299.87874 | K71: 26696.79954
B72: 45 | D72: =FACTORES!F84 -> 16256.84 | E72: =FACTORES!G84 -> 18323.94 | F72: 20161.75236 | G72: 23016.73236 | H72: 20861.75236 | I72: 23716.73236 | J72: 24199.63274 | K72: 27511.40954
B73: 46 | D73: =FACTORES!F85 -> 17023.77 | E73: =FACTORES!G85 -> 19013.34 | F73: 21012.13236 | G73: 23781.14236 | H73: 21712.13236 | I73: 24481.14236 | J73: 25186.07354 | K73: 28398.12514
B74: 47 | D74: =FACTORES!F86 -> 17865.86 | E74: =FACTORES!G86 -> 19982.62 | F74: 21945.84236 | G74: 24855.88236 | H74: 22645.84236 | I74: 25555.88236 | J74: 26269.17714 | K74: 29644.82354
B75: 48 | D75: =FACTORES!F87 -> 18781.49 | E75: =FACTORES!G87 -> 20785.77 | F75: 22961.09236 | G75: 25746.41236 | H75: 23661.09236 | I75: 26446.41236 | J75: 27446.86714 | K75: 30677.83834
B76: 49 | D76: =FACTORES!F88 -> 19785.53 | E76: =FACTORES!G88 -> 21651.99 | F76: 24074.37236 | G76: 26706.88236 | H76: 24774.37236 | I76: 27406.88236 | J76: 28738.27194 | K76: 31791.98354
B77: 50 | D77: =FACTORES!F89 -> 20889.25 | E77: =FACTORES!G89 -> 22571.02 | F77: =ROUND(D77*$G$5*$G$6*$G$8,2)+ADIC+DENTAL+ENFGVES+IKE+CVISION+DEDXACC -> 25298.17236 | G77: 27725.90236 | H77: 25998.17236 | I77: 28425.90236 | J77: 30157.87994 | K77: 32974.04674
B78: 51 | D78: =FACTORES!F90 -> 22081.09 | E78: =FACTORES!G90 -> 23555.29 | F78: 26619.68236 | G78: 28817.26236 | H78: 27319.68236 | I78: 29517.26236 | J78: 31690.83154 | K78: 34240.02434
B79: 52 | D79: =FACTORES!F91 -> 23383.32 | E79: =FACTORES!G91 -> 24613.18 | F79: 28063.60236 | G79: 29990.24236 | H79: 28763.60236 | I79: 30690.24236 | J79: 33365.77874 | K79: 35600.68114
B80: 53 | D80: =FACTORES!F92 -> 24786.55 | E80: =FACTORES!G92 -> 25749.46 | F80: 29619.50236 | G80: 31250.15236 | H80: 30319.50236 | I80: 31950.15236 | J80: 35170.62274 | K80: 37062.17674
B81: 54 | D81: =FACTORES!F93 -> 26309.23 | E81: =FACTORES!G93 -> 26960.4 | F81: 31307.84236 | G81: 32592.84236 | H81: 32007.84236 | I81: 33292.84236 | J81: 37129.09714 | K81: 38619.69714
B82: 55 | D82: =FACTORES!F94 -> 27947.42 | E82: =FACTORES!G94 -> 28418.92 | F82: 33124.27236 | G82: =ROUND(E82*$G$5*$G$6*$G$8,2)+ADIC+DENTAL+ENFGVES+IKE+CVISION+DEDXACC -> 33647.07236 | H82: 33824.27236 | I82: 34347.07236 | J82: 39236.15594 | K82: 39842.60394
B83: 56 | D83: =FACTORES!F95 -> 29715.98 | E83: =FACTORES!G95 -> 30340.78 | F83: 35085.25236 | G83: 35778.03236 | H83: 35785.25236 | I83: 36478.03236 | J83: 41510.89274 | K83: 42314.51754
B84: 57 | D84: =FACTORES!F96 -> 31628.2 | E84: =FACTORES!G96 -> 31495.56 | F84: 37205.52236 | G84: 37058.45236 | H84: 37905.52236 | I84: 37758.45236 | J84: 43970.40594 | K84: 43799.80474
B85: 58 | D85: =FACTORES!F97 -> 32986.41 | E85: =FACTORES!G97 -> 32753.31 | F85: 38711.50236 | G85: 38453.04236 | H85: 39411.50236 | I85: 39153.04236 | J85: 45717.34274 | K85: 45417.52914
B86: 59 | D86: =FACTORES!F98 -> 35128.47 | E86: =FACTORES!G98 -> 33289.22 | F86: 41086.62236 | G86: 39047.26236 | H86: 41786.62236 | I86: 39747.26236 | J86: 48472.48194 | K86: 46106.82434
B87: 60 | D87: =FACTORES!F99 -> 37227.48 | E87: =FACTORES!G99 -> 36009.77 | F87: 43414.00236 | G87: 42063.80236 | H87: 44114.00236 | I87: 42763.80236 | J87: 51172.24274 | K87: 49606.01074
B88: 61 | D88: =FACTORES!F100 -> 39237.49 | E88: =FACTORES!G100 -> 37533.74 | F88: 45642.70236 | G88: 43753.58236 | H88: 46342.70236 | I88: 44453.58236 | J88: 53757.53474 | K88: 51566.15554
B89: 62 | D89: =FACTORES!F101 -> 41355.12 | E89: =FACTORES!G101 -> 39139.4 | F89: 47990.73236 | G89: 45533.94236 | H89: 48690.73236 | I89: 46233.94236 | J89: 56481.24954 | K89: 53631.37314
B90: 63 | D90: =FACTORES!F102 -> 43557.7 | E90: =FACTORES!G102 -> 40812.62 | F90: 50432.95236 | G90: 47389.20236 | H90: 51132.95236 | I90: 48089.20236 | J90: 59314.22474 | K90: 55783.47474
B91: 64 | D91: =FACTORES!F103 -> 45883.26 | E91: =FACTORES!G103 -> 42599.3 | F91: 53011.53236 | G91: 49370.27236 | H91: 53711.53236 | I91: 50070.27236 | J91: 62305.37754 | K91: 58081.51594
B92: 65 | D92: =FACTORES!F104 -> 48254.82 | E92: =FACTORES!G104 -> 44404.38 | F92: 55641.11236 | G92: 51371.75236 | H92: =(F92*(1+$I$24))+$I$25 -> 56341.11236 | I92: =(G92*(1+$I$24))+$I$25 -> 52071.75236 | J92: =H92*(1+$K$25) -> 65355.69034 | K92: =I92*(1+$K$25) -> 60403.23274
B93: =+B92+1 -> 66 | D93: =FACTORES!F105 -> 50789.98 | E93: =FACTORES!G105 -> 46390.05 | F93: 58452.10236 | G93: 53573.46236 | H93: 59152.10236 | I93: 54273.46236 | J93: 68616.43874 | K93: 62957.21634
B94: 67 | D94: =FACTORES!F106 -> 53436.02 | E94: =FACTORES!G106 -> 48295.78 | F94: 61386.03236 | G94: 55686.53236 | H94: 62086.03236 | I94: 56386.53236 | J94: 72019.79754 | K94: 65408.37754
B95: 68 | D95: =FACTORES!F107 -> 56153.86 | E95: =FACTORES!G107 -> 50391.14 | F95: 64399.57236 | G95: 58009.87236 | H95: 65099.57236 | I95: 58709.87236 | J95: 75515.50394 | K95: 68103.45194
B96: 69 | D96: =FACTORES!F108 -> 59016.42 | E96: =FACTORES!G108 -> 52642.3 | F96: 67573.58236 | G96: 60505.95236 | H96: 68273.58236 | I96: 61205.95236 | J96: 79197.35554 | K96: 70998.90474
B97: 70 | D97: =FACTORES!F109 -> 61956.79 | E97: =FACTORES!G109 -> 54847.06 | F97: 70833.86236 | G97: 62950.59236 | H97: 71533.86236 | I97: 63650.59236 | J97: 82979.28034 | K97: 73834.68714
B98: 71 | D98: =FACTORES!F110 -> 64949.82 | E98: =FACTORES!G110 -> 57157.46 | F98: 74152.53236 | G98: 65512.36236 | H98: 74852.53236 | I98: 66212.36236 | J98: 86828.93754 | K98: 76806.34034
B99: 72 | D99: =FACTORES!F111 -> 68052.7 | E99: =FACTORES!G111 -> 59626.17 | F99: 77593.00236 | G99: 68249.67236 | H99: 78293.00236 | I99: 68949.67236 | J99: 90819.88274 | K99: 79981.61994
B100: 73 | D100: =FACTORES!F112 -> 71225.34 | E100: =FACTORES!G112 -> 62044.09 | F100: 81110.83236 | G100: 70930.66236 | H100: 81810.83236 | I100: 71630.66236 | J100: 94900.56554 | K100: 83091.56834
B101: 74 | D101: =FACTORES!F113 -> 74655.57 | E101: =FACTORES!G113 -> 64510.36 | F101: 84914.27236 | G101: 73665.26236 | H101: 85614.27236 | I101: 74365.26236 | J101: 99312.55594 | K101: 86263.70434
B102: 75 | D102: =FACTORES!F114 -> 77887.35 | E102: =FACTORES!G114 -> 67166.18 | F102: 88497.66236 | G102: 76610.03236 | H102: 89197.66236 | I102: 77310.03236 | J102: 103469.2883 | K102: 89679.63754
B103: 76 | D103: =FACTORES!F115 -> 81833.72 | E103: =FACTORES!G115 -> 70081.7 | F103: 92873.40236 | G103: 79842.76236 | H103: 93573.40236 | I103: 80542.76236 | J103: 108545.1467 | K103: 93429.60434
B104: 77 | D104: =FACTORES!F116 -> 86050.23 | E104: =FACTORES!G116 -> 73208.73 | F104: 97548.67236 | G104: 83310.01236 | H104: 98248.67236 | I104: 84010.01236 | J104: 113968.4599 | K104: 97451.61434
B105: 78 | D105: =FACTORES!F117 -> 90433.58 | E105: =FACTORES!G117 -> 76466.38 | F105: 102408.9224 | G105: 86922.09236 | H105: 103108.9224 | I105: 87622.09236 | J105: 119606.3499 | K105: 101641.6271
B106: 79 | D106: =FACTORES!F118 -> 95245.14 | E106: =FACTORES!G118 -> 79734.4 | F106: 107743.9824 | G106: 90545.67236 | H106: 108443.9824 | I106: 91245.67236 | J106: 125795.0195 | K106: 105844.9799
B107: 80 | D107: =FACTORES!F119 -> 99912.51 | E107: =FACTORES!G119 -> 83184.1 | F107: 112919.1624 | G107: 94370.70236 | H107: 113619.1624 | I107: 95070.70236 | J107: 131798.2283 | K107: 110282.0147
B108: 81 | D108: =FACTORES!F120 -> 105395.27 | E108: =FACTORES!G120 -> 86679.44 | F108: 118998.4524 | G108: 98246.33236 | H108: 119698.4524 | I108: 98946.33236 | J108: 138850.2047 | K108: 114777.7455
B109: 82 | D109: =FACTORES!F121 -> 111085.93 | E109: =FACTORES!G121 -> 90032.03 | F109: 125308.2524 | G109: 101963.6824 | H109: 126008.2524 | I109: 102663.6824 | J109: 146169.5727 | K109: 119089.8715
B110: 83 | D110: =FACTORES!F122 -> 117016.22 | E110: =FACTORES!G122 -> 93849.72 | F110: 131883.7524 | G110: 106196.7424 | H110: 132583.7524 | I110: 106896.7424 | J110: 153797.1527 | K110: 124000.2211
B111: 84 | D111: =FACTORES!F123 -> 123224.1 | E111: =FACTORES!G123 -> 97553.86 | F111: 138767.0524 | G111: 110303.8924 | H111: =(F111*(1+$I$24))+$I$25 -> 139467.0524 | I111: =(G111*(1+$I$24))+$I$25 -> 111003.8924 | J111: =H111*(1+$K$25) -> 161781.7807 | K111: =I111*(1+$K$25) -> 128764.5151
B112: 85 | D112: =FACTORES!F124 -> 129754.17 | E112: =FACTORES!G124 -> 101362.64 | F112: 146007.5924 | G112: 114527.0724 | H112: =(F112*(1+$I$24))+$I$25 -> 146707.5924 | I112: =(G112*(1+$I$24))+$I$25 -> 115227.0724 | J112: =H112*(1+$K$25) -> 170180.8071 | K112: =I112*(1+$K$25) -> 133663.4039

Sheet CONYUGE (hidden)
C1: GASTOS MÉDICOS MAYORES INDIVIDUAL/FAMILIAR | I1: REGION COBERTURA BASICA
I2: =IF(ISERROR(VLOOKUP(E3,VALORES!$A$6:$B$11,2,FALSE)),"REGION NO VALIDA",VLOOKUP(E3,VALORES!$A$6:$B$11,2,FALSE)) -> CHIHUAHUA, NUEVO LEON, TAMAULIPAS
B3: REGIÓN: | E3: =+COTIZACION!D15 -> 4 | F3: =IF(E3>7,"NO PROCEDE"," ") ->  | G3: FACTORES
B5: SUMA ASEGURADA: | E5: =+COTIZACION!D11 -> 10000000 | G5: =+TITULAR!G5 -> 1.26
B6: DEDUCIBLE: | E6: =+COTIZACION!D12 -> 10000 | G6: =+TITULAR!G6 -> 0.88
B7: COASEGURO: | E7: =+COTIZACION!D13 -> 0.1 | G7: =+TITULAR!G8 -> 1
B8: CATALOGO:
B9: SUMA ASEGURADA PARTO O CESAREA
F10: ZONA | O10: A
B11: EMERGENCIA EXTRANJERO: | O11: S
B12: COBER TOTAL EXTRANJERO: | K12: A
K13: B
B14: FORMA DE PAGO: | E14: =+COTIZACION!C21 -> 0 | G14: =+TITULAR!G17 -> 0 | K14: C
D18: PRIMA BASE | F18: PRIMA TARIFA | H18: R P FRAC | I18: =G14 -> 0 | J18: PRIMA TOTAL | M18: TARIFA CONYUGUE
D19: REGIONALIZADA | F19: REGIONALIZADA | H19: DER POLIZA | I19: 0 | J19: IVA | K19: =+COTIZACION!D20 -> 0.16 | M19: IVA | N19: =+COTIZACION!D20 -> 0.16
B20: EDAD | D20: HOMBRE | E20: MUJER | F20: HOMBRE | G20: MUJER | H20: HOMBRE | I20: MUJER | J20: HOMBRE | K20: MUJER | M20: HOMBRE | N20: MUJER
B21: 0 | D21: =FACTORES!F39 -> 4620.18 | E21: =FACTORES!G39 -> 4639.54 | F21: =ROUND(D21*$G$5*$G$6*$G$7,2)+ADIC+DENTAL+IKE+CVISION -> 6498.93 | G21: =ROUND(E21*$G$5*$G$6*$G$7,2)+ADIC+DENTAL+IKE+CVISION -> 6520.39 | H21: =(F21*(1+$I$18))+$I$19 -> 6498.93 | I21: =(G21*(1+$I$18))+$I$19 -> 6520.39 | J21: =H21*(1+$K$19) -> 7538.7588 | K21: =I21*(1+$K$19) -> 7563.6524 | M21: =(D21*$G$5*$G$6*$G$7*$G$11*$G$12*$G$8+(ADIC+DENTAL+CVISION+IKE)*(1-DESC))*(1+IVA) -> 1596.2412 | N21: =(E21*$G$5*$G$6*$G$7*$G$11*$G$12*$G$8+(ADIC+DENTAL+CVISION+IKE)*(1-DESC))*(1+IVA) -> 1596.2412
B22: =+B21+1 -> 1 | D22: =FACTORES!F40 -> 4620.18 | E22: =FACTORES!G40 -> 4639.54 | F22: 6498.93 | G22: 6520.39 | H22: =(F22*(1+$I$18))+$I$19 -> 6498.93 | I22: =(G22*(1+$I$18))+$I$19 -> 6520.39 | J22: =H22*(1+$K$19) -> 7538.7588 | K22: =I22*(1+$K$19) -> 7563.6524 | M22: 1596.2412 | N22: 1596.2412
B23: =+B22+1 -> 2 | D23: =FACTORES!F41 -> 4620.18 | E23: =FACTORES!G41 -> 4639.54 | F23: 6498.93 | G23: 6520.39 | H23: 6498.93 | I23: 6520.39 | J23: 7538.7588 | K23: 7563.6524 | M23: 1596.2412 | N23: 1596.2412
B24: 3 | D24: =FACTORES!F42 -> 4620.18 | E24: =FACTORES!G42 -> 4639.54 | F24: 6498.93 | G24: 6520.39 | H24: 6498.93 | I24: 6520.39 | J24: 7538.7588 | K24: 7563.6524 | M24: 1596.2412 | N24: 1596.2412
B25: 4 | D25: =FACTORES!F43 -> 4620.18 | E25: =FACTORES!G43 -> 4639.54 | F25: 6498.93 | G25: 6520.39 | H25: 6498.93 | I25: 6520.39 | J25: 7538.7588 | K25: 7563.6524 | M25: 1596.2412 | N25: 1596.2412
B26: 5 | D26: =FACTORES!F44 -> 4620.18 | E26: =FACTORES!G44 -> 4639.54 | F26: 6498.93 | G26: 6520.39 | H26: 6498.93 | I26: 6520.39 | J26: 7538.7588 | K26: 7563.6524 | M26: 1596.2412 | N26: 1596.2412
B27: 6 | D27: =FACTORES!F45 -> 4620.18 | E27: =FACTORES!G45 -> 4639.54 | F27: 6498.93 | G27: 6520.39 | H27: 6498.93 | I27: 6520.39 | J27: 7538.7588 | K27: 7563.6524 | M27: 1596.2412 | N27: 1596.2412
B28: 7 | D28: =FACTORES!F46 -> 4620.18 | E28: =FACTORES!G46 -> 4639.54 | F28: 6498.93 | G28: 6520.39 | H28: 6498.93 | I28: 6520.39 | J28: 7538.7588 | K28: 7563.6524 | M28: 1596.2412 | N28: 1596.2412
B29: 8 | D29: =FACTORES!F47 -> 4620.18 | E29: =FACTORES!G47 -> 4639.54 | F29: 6498.93 | G29: 6520.39 | H29: 6498.93 | I29: 6520.39 | J29: 7538.7588 | K29: 7563.6524 | M29: 1596.2412 | N29: 1596.2412
B30: 9 | D30: =FACTORES!F48 -> 4620.18 | E30: =FACTORES!G48 -> 4639.54 | F30: 6498.93 | G30: 6520.39 | H30: 6498.93 | I30: 6520.39 | J30: 7538.7588 | K30: 7563.6524 | M30: 1596.2412 | N30: 1596.2412
B31: 10 | D31: =FACTORES!F49 -> 4620.18 | E31: =FACTORES!G49 -> 4639.54 | F31: 6498.93 | G31: 6520.39 | H31: 6498.93 | I31: 6520.39 | J31: 7538.7588 | K31: 7563.6524 | M31: 1596.2412 | N31: 1596.2412
B32: 11 | D32: =FACTORES!F50 -> 4672.47 | E32: =FACTORES!G50 -> 4637.22 | F32: 6556.9 | G32: 6517.82 | H32: 6556.9 | I32: 6517.82 | J32: 7606.004 | K32: 7560.6712 | M32: 1596.2412 | N32: 1596.2412
B33: 12 | D33: =FACTORES!F51 -> 4655.1 | E33: =FACTORES!G51 -> 4681.72 | F33: 6537.64 | G33: 6567.16 | H33: 6537.64 | I33: 6567.16 | J33: 7583.6624 | K33: 7617.9056 | M33: 1596.2412 | N33: 1596.2412
B34: 13 | D34: =FACTORES!F52 -> 4620.6 | E34: =FACTORES!G52 -> 4652.59 | F34: 6499.39 | G34: 6534.86 | H34: 6499.39 | I34: 6534.86 | J34: 7539.2924 | K34: 7580.4376 | M34: 1596.2412 | N34: 1596.2412
B35: 14 | D35: =FACTORES!F53 -> 4495.64 | E35: =FACTORES!G53 -> 4562 | F35: 6360.84 | G35: 6434.42 | H35: 6360.84 | I35: 6434.42 | J35: 7378.5744 | K35: 7463.9272 | M35: 1596.2412 | N35: 1596.2412
B36: 15 | D36: =FACTORES!F54 -> 4512.29 | E36: =FACTORES!G54 -> 4487.34 | F36: 6379.3 | G36: 6351.63 | H36: 6379.3 | I36: 6351.63 | J36: 7399.988 | K36: 7367.8908 | M36: 1596.2412 | N36: 1596.2412
B37: 16 | D37: =FACTORES!F55 -> 4435.81 | E37: =FACTORES!G55 -> 4148.58 | F37: 6294.5 | G37: 5976.02 | H37: 6294.5 | I37: 5976.02 | J37: 7301.62 | K37: 6932.1832 | M37: 1596.2412 | N37: 1596.2412
B38: 17 | D38: =FACTORES!F56 -> 4464.25 | E38: =FACTORES!G56 -> 4216.71 | F38: 6326.03 | G38: 6051.56 | H38: 6326.03 | I38: 6051.56 | J38: 7338.1948 | K38: 7019.8096 | M38: 1596.2412 | N38: 1596.2412
B39: 18 | D39: =FACTORES!F57 -> 4589.46 | E39: =FACTORES!G57 -> 4086.68 | F39: =ROUND(D39*$G$5*$G$6*$G$7,2)+ADIC+DENTAL+IKE+CVISION -> 6464.86 | G39: =ROUND(E39*$G$5*$G$6*$G$7,2)+ADIC+DENTAL+IKE+PARTO+CVISION -> 6470.36 | H39: 6464.86 | I39: 6470.36 | J39: 7499.2376 | K39: 7505.6176 | M39: 1596.2412 | N39: 1596.2412
B40: 19 | D40: =FACTORES!F58 -> 4742.18 | E40: =FACTORES!G58 -> 4146.65 | F40: 6634.2 | G40: 6536.86 | H40: 6634.2 | I40: 6536.86 | J40: 7695.672 | K40: 7582.7576 | M40: 1596.2412 | N40: 1596.2412
B41: 20 | D41: =FACTORES!F59 -> 4914.74 | E41: =FACTORES!G59 -> 4910.35 | F41: 6825.53 | G41: 7383.65 | H41: 6825.53 | I41: 7383.65 | J41: 7917.6148 | K41: 8565.034 | M41: 1596.2412 | N41: 1596.2412
B42: 21 | D42: =FACTORES!F60 -> 5308.79 | E42: =FACTORES!G60 -> 6341.85 | F42: 7262.46 | G42: 8970.89 | H42: 7262.46 | I42: 8970.89 | J42: 8424.4536 | K42: 10406.2324 | M42: 1596.2412 | N42: 1596.2412
B43: 22 | D43: =FACTORES!F61 -> 5540.61 | E43: =FACTORES!G61 -> 6644.18 | F43: 7519.5 | G43: 9306.12 | H43: 7519.5 | I43: 9306.12 | J43: 8722.62 | K43: 10795.0992 | M43: 1596.2412 | N43: 1596.2412
B44: 23 | D44: =FACTORES!F62 -> 5908.31 | E44: =FACTORES!G62 -> 6954.38 | F44: 7927.2 | G44: 9650.07 | H44: 7927.2 | I44: 9650.07 | J44: 9195.552 | K44: 11194.0812 | M44: 1596.2412 | N44: 1596.2412
B45: 24 | D45: =FACTORES!F63 -> 6148.13 | E45: =FACTORES!G63 -> 7279.55 | F45: 8193.12 | G45: 10010.62 | H45: 8193.12 | I45: 10010.62 | J45: 9504.0192 | K45: 11612.3192 | M45: 1596.2412 | N45: 1596.2412
B46: 25 | D46: =FACTORES!F64 -> 6388.63 | E46: =FACTORES!G64 -> 7616.57 | F46: 8459.78 | G46: 10384.3 | H46: 8459.78 | I46: 10384.3 | J46: 9813.3448 | K46: 12045.788 | M46: 1596.2412 | N46: 1596.2412
B47: 26 | D47: =FACTORES!F65 -> 6811.94 | E47: =FACTORES!G65 -> 7912.12 | F47: 8929.15 | G47: 10712.01 | H47: 8929.15 | I47: 10712.01 | J47: 10357.814 | K47: 12425.9316 | M47: 1596.2412 | N47: 1596.2412
B48: 27 | D48: =FACTORES!F66 -> 7113.34 | E48: =FACTORES!G66 -> 8273.58 | F48: 9263.34 | G48: 11112.8 | H48: 9263.34 | I48: 11112.8 | J48: 10745.4744 | K48: 12890.848 | M48: 1596.2412 | N48: 1596.2412
B49: 28 | D49: =FACTORES!F67 -> 7523.28 | E49: =FACTORES!G67 -> 8659.34 | F49: 9717.88 | G49: 11540.53 | H49: 9717.88 | I49: 11540.53 | J49: 11272.7408 | K49: 13387.0148 | M49: 1596.2412 | N49: 1596.2412
B50: 29 | D50: =FACTORES!F68 -> 7903.66 | E50: =FACTORES!G68 -> 9048.62 | F50: 10139.65 | G50: 11972.16 | H50: 10139.65 | I50: 11972.16 | J50: 11761.994 | K50: 13887.7056 | M50: 1596.2412 | N50: 1596.2412
B51: 30 | D51: =FACTORES!F69 -> 8257.52 | E51: =FACTORES!G69 -> 9476.68 | F51: 10532.01 | G51: 12446.79 | H51: 10532.01 | I51: 12446.79 | J51: 12217.1316 | K51: 14438.2764 | M51: 1596.2412 | N51: 1596.2412
B52: 31 | D52: =FACTORES!F70 -> 8597.58 | E52: =FACTORES!G70 -> 9916.26 | F52: 10909.07 | G52: 12934.2 | H52: 10909.07 | I52: 12934.2 | J52: 12654.5212 | K52: 15003.672 | M52: 1596.2412 | N52: 1596.2412
B53: 32 | D53: =FACTORES!F71 -> 9126.28 | E53: =FACTORES!G71 -> 10362.89 | F53: 11495.29 | G53: 13429.42 | H53: 11495.29 | I53: 13429.42 | J53: 13334.5364 | K53: 15578.1272 | M53: =(D53*$G$5*$G$6*$G$7*$G$11*$G$12*$G$8+(ADIC+DENTAL+CVISION+IKE)*(1-DESC))*(1+IVA) -> 1596.2412 | N53: =(E53*$G$5*$G$6*$G$7*$G$11*$G$12*$G$8+(ADIC+DENTAL+CVISION+IKE)*(1-DESC))*(1+IVA) -> 1596.2412
B54: 33 | D54: =FACTORES!F72 -> 9448.24 | E54: =FACTORES!G72 -> 10818.09 | F54: 11852.28 | G54: 13934.15 | H54: 11852.28 | I54: 13934.15 | J54: 13748.6448 | K54: 16163.614 | M54: 1596.2412 | N54: 1596.2412
B55: 34 | D55: =FACTORES!F73 -> 9976.81 | E55: =FACTORES!G73 -> 11305.46 | F55: 12438.36 | G55: 14474.54 | H55: 12438.36 | I55: 14474.54 | J55: 14428.4976 | K55: 16790.4664 | M55: 1596.2412 | N55: 1596.2412
B56: 35 | D56: =FACTORES!F74 -> 10527.81 | E56: =FACTORES!G74 -> 11821.9 | F56: 13049.31 | G56: 15047.17 | H56: 13049.31 | I56: 15047.17 | J56: 15137.1996 | K56: 17454.7172 | M56: 1596.2412 | N56: 1596.2412
B57: 36 | D57: =FACTORES!F75 -> 10977.86 | E57: =FACTORES!G75 -> 12351.26 | F57: 13548.32 | G57: 15634.13 | H57: 13548.32 | I57: 15634.13 | J57: 15716.0512 | K57: 18135.5908 | M57: 1596.2412 | N57: 1596.2412
B58: 37 | D58: =FACTORES!F76 -> 11576.41 | E58: =FACTORES!G76 -> 12941.79 | F58: 14211.99 | G58: 16288.91 | H58: 14211.99 | I58: 16288.91 | J58: 16485.9084 | K58: 18895.1356 | M58: 1596.2412 | N58: 1596.2412
B59: 38 | D59: =FACTORES!F77 -> 12193.69 | E59: =FACTORES!G77 -> 13511.02 | F59: 14896.43 | G59: 16920.07 | H59: 14896.43 | I59: 16920.07 | J59: 17279.8588 | K59: 19627.2812 | M59: 1596.2412 | N59: 1596.2412
B60: 39 | D60: =FACTORES!F78 -> 12859.45 | E60: =FACTORES!G78 -> 14123.42 | F60: 15634.63 | G60: 17599.1 | H60: 15634.63 | I60: 17599.1 | J60: 18136.1708 | K60: 20414.956 | M60: 1596.2412 | N60: 1596.2412
B61: 40 | D61: =FACTORES!F79 -> 13311.7 | E61: =FACTORES!G79 -> 14758.02 | F61: 16136.08 | G61: 18302.74 | H61: 16136.08 | I61: 18302.74 | J61: 18717.8528 | K61: 21231.1784 | M61: 1596.2412 | N61: 1596.2412
B62: 41 | D62: =FACTORES!F80 -> 13807 | E62: =FACTORES!G80 -> 15423.62 | F62: 16685.27 | G62: 19040.76 | H62: 16685.27 | I62: 19040.76 | J62: 19354.9132 | K62: 22087.2816 | M62: 1596.2412 | N62: 1596.2412
B63: 42 | D63: =FACTORES!F81 -> 14342.74 | E63: =FACTORES!G81 -> 16116.3 | F63: 17279.3 | G63: 19808.8 | H63: 17279.3 | I63: 19808.8 | J63: 20043.988 | K63: 22978.208 | M63: 1596.2412 | N63: 1596.2412
B64: 43 | D64: =FACTORES!F82 -> 14915.49 | E64: =FACTORES!G82 -> 16836.87 | F64: 17914.37 | G64: 20607.77 | H64: 17914.37 | I64: 20607.77 | J64: 20780.6692 | K64: 23905.0132 | M64: 1596.2412 | N64: 1596.2412
B65: 44 | D65: =FACTORES!F83 -> 15557.3 | E65: =FACTORES!G83 -> 17690.59 | F65: 18626 | G65: 21554.38 | H65: 18626 | I65: 21554.38 | J65: 21606.16 | K65: 25003.0808 | M65: 1596.2412 | N65: 1596.2412
B66: 45 | D66: =FACTORES!F84 -> 16256.84 | E66: =FACTORES!G84 -> 18323.94 | F66: 19401.65 | G66: 22256.63 | H66: 19401.65 | I66: 22256.63 | J66: 22505.914 | K66: 25817.6908 | M66: 1596.2412 | N66: 1596.2412
B67: 46 | D67: =FACTORES!F85 -> 17023.77 | E67: =FACTORES!G85 -> 19013.34 | F67: 20252.03 | G67: 23021.04 | H67: 20252.03 | I67: 23021.04 | J67: 23492.3548 | K67: 26704.4064 | M67: 1596.2412 | N67: 1596.2412
B68: 47 | D68: =FACTORES!F86 -> 17865.86 | E68: =FACTORES!G86 -> 19982.62 | F68: 21185.74 | G68: 24095.78 | H68: 21185.74 | I68: 24095.78 | J68: 24575.4584 | K68: 27951.1048 | M68: 1596.2412 | N68: 1596.2412
B69: 48 | D69: =FACTORES!F87 -> 18781.49 | E69: =FACTORES!G87 -> 20785.77 | F69: 22200.99 | G69: 24986.31 | H69: 22200.99 | I69: 24986.31 | J69: 25753.1484 | K69: 28984.1196 | M69: 1596.2412 | N69: 1596.2412
B70: 49 | D70: =FACTORES!F88 -> 19785.53 | E70: =FACTORES!G88 -> 21651.99 | F70: 23314.27 | G70: 25946.78 | H70: 23314.27 | I70: 25946.78 | J70: 27044.5532 | K70: 30098.2648 | M70: 1596.2412 | N70: 1596.2412
B71: 50 | D71: =FACTORES!F89 -> 20889.25 | E71: =FACTORES!G89 -> 22571.02 | F71: =ROUND(D71*$G$5*$G$6*$G$7,2)+ADIC+DENTAL+IKE+CVISION -> 24538.07 | G71: 26965.8 | H71: 24538.07 | I71: 26965.8 | J71: 28464.1612 | K71: 31280.328 | M71: 1596.2412 | N71: 1596.2412
B72: 51 | D72: =FACTORES!F90 -> 22081.09 | E72: =FACTORES!G90 -> 23555.29 | F72: 25859.58 | G72: 28057.16 | H72: 25859.58 | I72: 28057.16 | J72: 29997.1128 | K72: 32546.3056 | M72: 1596.2412 | N72: 1596.2412
B73: 52 | D73: =FACTORES!F91 -> 23383.32 | E73: =FACTORES!G91 -> 24613.18 | F73: 27303.5 | G73: 29230.14 | H73: 27303.5 | I73: 29230.14 | J73: 31672.06 | K73: 33906.9624 | M73: 1596.2412 | N73: 1596.2412
B74: 53 | D74: =FACTORES!F92 -> 24786.55 | E74: =FACTORES!G92 -> 25749.46 | F74: 28859.4 | G74: 30490.05 | H74: 28859.4 | I74: 30490.05 | J74: 33476.904 | K74: 35368.458 | M74: 1596.2412 | N74: 1596.2412
B75: 54 | D75: =FACTORES!F93 -> 26309.23 | E75: =FACTORES!G93 -> 26960.4 | F75: 30547.74 | G75: 31832.74 | H75: 30547.74 | I75: 31832.74 | J75: 35435.3784 | K75: 36925.9784 | M75: 1596.2412 | N75: 1596.2412
B76: 55 | D76: =FACTORES!F94 -> 27947.42 | E76: =FACTORES!G94 -> 28418.92 | F76: 32364.17 | G76: =ROUND(E76*$G$5*$G$6*$G$7,2)+ADIC+DENTAL+IKE+CVISION -> 32886.97 | H76: 32364.17 | I76: 32886.97 | J76: 37542.4372 | K76: 38148.8852 | M76: 1596.2412 | N76: 1596.2412
B77: 56 | D77: =FACTORES!F95 -> 29715.98 | E77: =FACTORES!G95 -> 30340.78 | F77: 34325.15 | G77: 35017.93 | H77: 34325.15 | I77: 35017.93 | J77: 39817.174 | K77: 40620.7988 | M77: 1596.2412 | N77: 1596.2412
B78: 57 | D78: =FACTORES!F96 -> 31628.2 | E78: =FACTORES!G96 -> 31495.56 | F78: 36445.42 | G78: 36298.35 | H78: 36445.42 | I78: 36298.35 | J78: 42276.6872 | K78: 42106.086 | M78: 1596.2412 | N78: 1596.2412
B79: 58 | D79: =FACTORES!F97 -> 32986.41 | E79: =FACTORES!G97 -> 32753.31 | F79: 37951.4 | G79: 37692.94 | H79: 37951.4 | I79: 37692.94 | J79: 44023.624 | K79: 43723.8104 | M79: 1596.2412 | N79: 1596.2412
B80: 59 | D80: =FACTORES!F98 -> 35128.47 | E80: =FACTORES!G98 -> 33289.22 | F80: 40326.52 | G80: 38287.16 | H80: 40326.52 | I80: 38287.16 | J80: 46778.7632 | K80: 44413.1056 | M80: 1596.2412 | N80: 1596.2412
B81: 60 | D81: =FACTORES!F99 -> 37227.48 | E81: =FACTORES!G99 -> 36009.77 | F81: 42653.9 | G81: 41303.7 | H81: 42653.9 | I81: 41303.7 | J81: 49478.524 | K81: 47912.292 | M81: 1596.2412 | N81: 1596.2412
B82: 61 | D82: =FACTORES!F100 -> 39237.49 | E82: =FACTORES!G100 -> 37533.74 | F82: 44882.6 | G82: 42993.48 | H82: 44882.6 | I82: 42993.48 | J82: 52063.816 | K82: 49872.4368 | M82: 1596.2412 | N82: 1596.2412
B83: 62 | D83: =FACTORES!F101 -> 41355.12 | E83: =FACTORES!G101 -> 39139.4 | F83: 47230.63 | G83: 44773.84 | H83: 47230.63 | I83: 44773.84 | J83: 54787.5308 | K83: 51937.6544 | M83: 1596.2412 | N83: 1596.2412
B84: 63 | D84: =FACTORES!F102 -> 43557.7 | E84: =FACTORES!G102 -> 40812.62 | F84: 49672.85 | G84: 46629.1 | H84: 49672.85 | I84: 46629.1 | J84: 57620.506 | K84: 54089.756 | M84: 1596.2412 | N84: 1596.2412
B85: 64 | D85: =FACTORES!F103 -> 45883.26 | E85: =FACTORES!G103 -> 42599.3 | F85: 52251.43 | G85: 48610.17 | H85: 52251.43 | I85: 48610.17 | J85: 60611.6588 | K85: 56387.7972 | M85: =(D85*$G$5*$G$6*$G$7*$G$11*$G$12*$G$8+(ADIC+DENTAL+CVISION+IKE)*(1-DESC))*(1+IVA) -> 1596.2412 | N85: =(E85*$G$5*$G$6*$G$7*$G$11*$G$12*$G$8+(ADIC+DENTAL+CVISION+IKE)*(1-DESC))*(1+IVA) -> 1596.2412
B86: 65 | D86: =FACTORES!F104 -> 48254.82 | E86: =FACTORES!G104 -> 44404.38 | F86: 54881.01 | G86: 50611.65 | H86: =(F86*(1+$I$18))+$I$19 -> 54881.01 | I86: =(G86*(1+$I$18))+$I$19 -> 50611.65 | J86: =H86*(1+$K$19) -> 63661.9716 | K86: =I86*(1+$K$19) -> 58709.514 | M86: 1596.2412 | N86: 1596.2412
B87: =+B86+1 -> 66 | D87: =FACTORES!F105 -> 50789.98 | E87: =FACTORES!G105 -> 46390.05 | F87: 57692 | G87: 52813.36 | H87: 57692 | I87: 52813.36 | J87: 66922.72 | K87: 61263.4976 | M87: 1596.2412 | N87: 1596.2412
B88: 67 | D88: =FACTORES!F106 -> 53436.02 | E88: =FACTORES!G106 -> 48295.78 | F88: 60625.93 | G88: 54926.43 | H88: 60625.93 | I88: 54926.43 | J88: 70326.0788 | K88: 63714.6588 | M88: 1596.2412 | N88: 1596.2412
B89: 68 | D89: =FACTORES!F107 -> 56153.86 | E89: =FACTORES!G107 -> 50391.14 | F89: 63639.47 | G89: 57249.77 | H89: 63639.47 | I89: 57249.77 | J89: 73821.7852 | K89: 66409.7332 | M89: 1596.2412 | N89: 1596.2412
B90: 69 | D90: =FACTORES!F108 -> 59016.42 | E90: =FACTORES!G108 -> 52642.3 | F90: 66813.48 | G90: 59745.85 | H90: 66813.48 | I90: 59745.85 | J90: 77503.6368 | K90: 69305.186 | M90: 1596.2412 | N90: 1596.2412
B91: 70 | D91: =FACTORES!F109 -> 61956.79 | E91: =FACTORES!G109 -> 54847.06 | F91: 70073.76 | G91: 62190.49 | H91: 70073.76 | I91: 62190.49 | J91: 81285.5616 | K91: 72140.9684 | M91: 1596.2412 | N91: 1596.2412
B92: 71 | D92: =FACTORES!F110 -> 64949.82 | E92: =FACTORES!G110 -> 57157.46 | F92: 73392.43 | G92: 64752.26 | H92: 73392.43 | I92: 64752.26 | J92: 85135.2188 | K92: 75112.6216 | M92: 1596.2412 | N92: 1596.2412
B93: 72 | D93: =FACTORES!F111 -> 68052.7 | E93: =FACTORES!G111 -> 59626.17 | F93: 76832.9 | G93: 67489.57 | H93: 76832.9 | I93: 67489.57 | J93: 89126.164 | K93: 78287.9012 | M93: 1596.2412 | N93: 1596.2412
B94: 73 | D94: =FACTORES!F112 -> 71225.34 | E94: =FACTORES!G112 -> 62044.09 | F94: 80350.73 | G94: 70170.56 | H94: 80350.73 | I94: 70170.56 | J94: 93206.8468 | K94: 81397.8496 | M94: 1596.2412 | N94: 1596.2412
B95: 74 | D95: =FACTORES!F113 -> 74655.57 | E95: =FACTORES!G113 -> 64510.36 | F95: 84154.17 | G95: 72905.16 | H95: 84154.17 | I95: 72905.16 | J95: 97618.8372 | K95: 84569.9856 | M95: 1596.2412 | N95: 1596.2412
B96: 75 | D96: =FACTORES!F114 -> 77887.35 | E96: =FACTORES!G114 -> 67166.18 | F96: 87737.56 | G96: 75849.93 | H96: 87737.56 | I96: 75849.93 | J96: 101775.5696 | K96: 87985.9188 | M96: 1596.2412 | N96: 1596.2412
B97: 76 | D97: =FACTORES!F115 -> 81833.72 | E97: =FACTORES!G115 -> 70081.7 | F97: 92113.3 | G97: 79082.66 | H97: 92113.3 | I97: 79082.66 | J97: 106851.428 | K97: 91735.8856 | M97: 1596.2412 | N97: 1596.2412
B98: 77 | D98: =FACTORES!F116 -> 86050.23 | E98: =FACTORES!G116 -> 73208.73 | F98: 96788.57 | G98: 82549.91 | H98: 96788.57 | I98: 82549.91 | J98: 112274.7412 | K98: 95757.8956 | M98: 1596.2412 | N98: 1596.2412
B99: 78 | D99: =FACTORES!F117 -> 90433.58 | E99: =FACTORES!G117 -> 76466.38 | F99: 101648.82 | G99: 86161.99 | H99: 101648.82 | I99: 86161.99 | J99: 117912.6312 | K99: 99947.9084 | M99: 1596.2412 | N99: 1596.2412
B100: 79 | D100: =FACTORES!F118 -> 95245.14 | E100: =FACTORES!G118 -> 79734.4 | F100: 106983.88 | G100: 89785.57 | H100: 106983.88 | I100: 89785.57 | J100: 124101.3008 | K100: 104151.2612 | M100: 1596.2412 | N100: 1596.2412
B101: 80 | D101: =FACTORES!F119 -> 99912.51 | E101: =FACTORES!G119 -> 83184.1 | F101: 112159.06 | G101: 93610.6 | H101: 112159.06 | I101: 93610.6 | J101: 130104.5096 | K101: 108588.296 | M101: 1596.2412 | N101: 1596.2412
B102: 81 | D102: =FACTORES!F120 -> 105395.27 | E102: =FACTORES!G120 -> 86679.44 | F102: 118238.35 | G102: 97486.23 | H102: 118238.35 | I102: 97486.23 | J102: 137156.486 | K102: 113084.0268 | M102: 1596.2412 | N102: 1596.2412
B103: 82 | D103: =FACTORES!F121 -> 111085.93 | E103: =FACTORES!G121 -> 90032.03 | F103: 124548.15 | G103: 101203.58 | H103: 124548.15 | I103: 101203.58 | J103: 144475.854 | K103: 117396.1528 | M103: 1596.2412 | N103: 1596.2412
B104: 83 | D104: =FACTORES!F122 -> 117016.22 | E104: =FACTORES!G122 -> 93849.72 | F104: 131123.65 | G104: 105436.64 | H104: 131123.65 | I104: 105436.64 | J104: 152103.434 | K104: 122306.5024 | M104: 1596.2412 | N104: 1596.2412
B105: 84 | D105: =FACTORES!F123 -> 123224.1 | E105: =FACTORES!G123 -> 97553.86 | F105: 138006.95 | G105: 109543.79 | H105: =(F105*(1+$I$18))+$I$19 -> 138006.95 | I105: =(G105*(1+$I$18))+$I$19 -> 109543.79 | J105: =H105*(1+$K$19) -> 160088.062 | K105: =I105*(1+$K$19) -> 127070.7964 | M105: =(D105*$G$5*$G$6*$G$7*$G$11*$G$12*$G$8+(ADIC+DENTAL+CVISION+IKE)*(1-DESC))*(1+IVA) -> 1596.2412 | N105: =(E105*$G$5*$G$6*$G$7*$G$11*$G$12*$G$8+(ADIC+DENTAL+CVISION+IKE)*(1-DESC))*(1+IVA) -> 1596.2412
B106: 85 | D106: =FACTORES!F124 -> 129754.17 | E106: =FACTORES!G124 -> 101362.64 | F106: 145247.49 | G106: 113766.97 | H106: =(F106*(1+$I$18))+$I$19 -> 145247.49 | I106: =(G106*(1+$I$18))+$I$19 -> 113766.97 | J106: =H106*(1+$K$19) -> 168487.0884 | K106: =I106*(1+$K$19) -> 131969.6852 | M106: =(D106*$G$5*$G$6*$G$7*$G$11*$G$12*$G$8+(ADIC+DENTAL+CVISION+IKE)*(1-DESC))*(1+IVA) -> 1596.2412 | N106: =(E106*$G$5*$G$6*$G$7*$G$11*$G$12*$G$8+(ADIC+DENTAL+CVISION+IKE)*(1-DESC))*(1+IVA) -> 1596.2412

Sheet DEPENDIENTE (hidden)
C1: GASTOS MÉDICOS MAYORES INDIVIDUAL/FAMILIAR | I1: REGION COBERTURA BASICA
I2: =IF(ISERROR(VLOOKUP(E3,VALORES!$A$6:$B$11,2,FALSE)),"REGION NO VALIDA",VLOOKUP(E3,VALORES!$A$6:$B$11,2,FALSE)) -> CHIHUAHUA, NUEVO LEON, TAMAULIPAS
B3: REGIÓN: | E3: =+COTIZACION!D15 -> 4 | F3: =IF(E3>7,"NO PROCEDE"," ") ->  | G3: FACTORES
B5: SUMA ASEGURADA: | E5: =+COTIZACION!D11 -> 10000000 | G5: =+TITULAR!G5 -> 1.26
B6: DEDUCIBLE: | E6: =+COTIZACION!D12 -> 10000 | G6: =+TITULAR!G6 -> 0.88
B7: COASEGURO: | E7: =+COTIZACION!D13 -> 0.1 | G7: =+TITULAR!G8 -> 1
B8: CATALOGO:
F9: ZONA | S9: A
B10: EMERGENCIA EXTRANJERO: | S10: S
B11: COBER TOTAL EXTRANJERO: | K11: A
K12: B
B13: FORMA DE PAGO: | E13: =+COTIZACION!C21 -> 0 | G13: =+TITULAR!G17 -> 0 | K13: C
D18: PRIMA BASE | F18: PRIMA TARIFA | H18: R P FRAC | I18: =G13 -> 0 | J18: PRIMA TOTAL
D19: REGIONALIZADA | F19: REGIONALIZADA | H19: DER POLIZA | I19: 0 | J19: IVA | K19: =+COTIZACION!D20 -> 0.16
B20: EDAD | D20: HOMBRE | E20: MUJER | F20: HOMBRE | G20: MUJER | H20: HOMBRE | I20: MUJER | J20: HOMBRE | K20: MUJER
B21: 0 | D21: =FACTORES!F39 -> 4620.18 | E21: =FACTORES!G39 -> 4639.54 | F21: =ROUND(D21*$G$5*$G$6*$G$7,2)+ADIC+DENTAL+IKE+CVISION -> 6498.93 | G21: =ROUND(E21*$G$5*$G$6*$G$7,2)+ADIC+DENTAL+IKE+CVISION -> 6520.39 | H21: =(F21*(1+$I$18))+$I$19 -> 6498.93 | I21: =(G21*(1+$I$18))+$I$19 -> 6520.39 | J21: =H21*(1+$K$19) -> 7538.7588 | K21: =I21*(1+$K$19) -> 7563.6524
B22: =+B21+1 -> 1 | D22: =FACTORES!F40 -> 4620.18 | E22: =FACTORES!G40 -> 4639.54 | F22: 6498.93 | G22: 6520.39 | H22: =(F22*(1+$I$18))+$I$19 -> 6498.93 | I22: =(G22*(1+$I$18))+$I$19 -> 6520.39 | J22: =H22*(1+$K$19) -> 7538.7588 | K22: =I22*(1+$K$19) -> 7563.6524
B23: =+B22+1 -> 2 | D23: =FACTORES!F41 -> 4620.18 | E23: =FACTORES!G41 -> 4639.54 | F23: 6498.93 | G23: 6520.39 | H23: 6498.93 | I23: 6520.39 | J23: 7538.7588 | K23: 7563.6524
B24: 3 | D24: =FACTORES!F42 -> 4620.18 | E24: =FACTORES!G42 -> 4639.54 | F24: 6498.93 | G24: 6520.39 | H24: 6498.93 | I24: 6520.39 | J24: 7538.7588 | K24: 7563.6524
B25: 4 | D25: =FACTORES!F43 -> 4620.18 | E25: =FACTORES!G43 -> 4639.54 | F25: 6498.93 | G25: 6520.39 | H25: 6498.93 | I25: 6520.39 | J25: 7538.7588 | K25: 7563.6524
B26: 5 | D26: =FACTORES!F44 -> 4620.18 | E26: =FACTORES!G44 -> 4639.54 | F26: 6498.93 | G26: 6520.39 | H26: 6498.93 | I26: 6520.39 | J26: 7538.7588 | K26: 7563.6524
B27: 6 | D27: =FACTORES!F45 -> 4620.18 | E27: =FACTORES!G45 -> 4639.54 | F27: 6498.93 | G27: 6520.39 | H27: 6498.93 | I27: 6520.39 | J27: 7538.7588 | K27: 7563.6524
B28: 7 | D28: =FACTORES!F46 -> 4620.18 | E28: =FACTORES!G46 -> 4639.54 | F28: 6498.93 | G28: 6520.39 | H28: 6498.93 | I28: 6520.39 | J28: 7538.7588 | K28: 7563.6524
B29: 8 | D29: =FACTORES!F47 -> 4620.18 | E29: =FACTORES!G47 -> 4639.54 | F29: 6498.93 | G29: 6520.39 | H29: 6498.93 | I29: 6520.39 | J29: 7538.7588 | K29: 7563.6524
B30: 9 | D30: =FACTORES!F48 -> 4620.18 | E30: =FACTORES!G48 -> 4639.54 | F30: 6498.93 | G30: 6520.39 | H30: 6498.93 | I30: 6520.39 | J30: 7538.7588 | K30: 7563.6524
B31: 10 | D31: =FACTORES!F49 -> 4620.18 | E31: =FACTORES!G49 -> 4639.54 | F31: 6498.93 | G31: 6520.39 | H31: 6498.93 | I31: 6520.39 | J31: 7538.7588 | K31: 7563.6524
B32: 11 | D32: =FACTORES!F50 -> 4672.47 | E32: =FACTORES!G50 -> 4637.22 | F32: 6556.9 | G32: 6517.82 | H32: 6556.9 | I32: 6517.82 | J32: 7606.004 | K32: 7560.6712
B33: 12 | D33: =FACTORES!F51 -> 4655.1 | E33: =FACTORES!G51 -> 4681.72 | F33: 6537.64 | G33: 6567.16 | H33: 6537.64 | I33: 6567.16 | J33: 7583.6624 | K33: 7617.9056
B34: 13 | D34: =FACTORES!F52 -> 4620.6 | E34: =FACTORES!G52 -> 4652.59 | F34: 6499.39 | G34: 6534.86 | H34: 6499.39 | I34: 6534.86 | J34: 7539.2924 | K34: 7580.4376
B35: 14 | D35: =FACTORES!F53 -> 4495.64 | E35: =FACTORES!G53 -> 4562 | F35: 6360.84 | G35: 6434.42 | H35: 6360.84 | I35: 6434.42 | J35: 7378.5744 | K35: 7463.9272
B36: 15 | D36: =FACTORES!F54 -> 4512.29 | E36: =FACTORES!G54 -> 4487.34 | F36: 6379.3 | G36: 6351.63 | H36: 6379.3 | I36: 6351.63 | J36: 7399.988 | K36: 7367.8908
B37: 16 | D37: =FACTORES!F55 -> 4435.81 | E37: =FACTORES!G55 -> 4148.58 | F37: 6294.5 | G37: 5976.02 | H37: 6294.5 | I37: 5976.02 | J37: 7301.62 | K37: 6932.1832
B38: 17 | D38: =FACTORES!F56 -> 4464.25 | E38: =FACTORES!G56 -> 4216.71 | F38: 6326.03 | G38: 6051.56 | H38: 6326.03 | I38: 6051.56 | J38: 7338.1948 | K38: 7019.8096
B39: 18 | D39: =FACTORES!F57 -> 4589.46 | E39: =FACTORES!G57 -> 4086.68 | F39: =ROUND(D39*$G$5*$G$6*$G$7,2)+ADIC+DENTAL+IKE+CVISION -> 6464.86 | G39: =ROUND(E39*$G$5*$G$6*$G$7,2)+ADIC+DENTAL+IKE+PARTO+CVISION -> 6470.36 | H39: 6464.86 | I39: 6470.36 | J39: 7499.2376 | K39: 7505.6176
B40: 19 | D40: =FACTORES!F58 -> 4742.18 | E40: =FACTORES!G58 -> 4146.65 | F40: 6634.2 | G40: 6536.86 | H40: 6634.2 | I40: 6536.86 | J40: 7695.672 | K40: 7582.7576
B41: 20 | D41: =FACTORES!F59 -> 4914.74 | E41: =FACTORES!G59 -> 4910.35 | F41: 6825.53 | G41: 7383.65 | H41: 6825.53 | I41: 7383.65 | J41: 7917.6148 | K41: 8565.034
B42: 21 | D42: =FACTORES!F60 -> 5308.79 | E42: =FACTORES!G60 -> 6341.85 | F42: 7262.46 | G42: 8970.89 | H42: 7262.46 | I42: 8970.89 | J42: 8424.4536 | K42: 10406.2324
B43: 22 | D43: =FACTORES!F61 -> 5540.61 | E43: =FACTORES!G61 -> 6644.18 | F43: 7519.5 | G43: 9306.12 | H43: 7519.5 | I43: 9306.12 | J43: 8722.62 | K43: 10795.0992
B44: 23 | D44: =FACTORES!F62 -> 5908.31 | E44: =FACTORES!G62 -> 6954.38 | F44: 7927.2 | G44: 9650.07 | H44: 7927.2 | I44: 9650.07 | J44: 9195.552 | K44: 11194.0812
B45: 24 | D45: =FACTORES!F63 -> 6148.13 | E45: =FACTORES!G63 -> 7279.55 | F45: 8193.12 | G45: 10010.62 | H45: 8193.12 | I45: 10010.62 | J45: 9504.0192 | K45: 11612.3192

Sheet VALORES (hidden)
A1: COTIZACIÓN
A2: R = RENOVACIÓN
A3: N = NUEVA
A5: NO. | B5: REGIÓN
A6: 1 | B6: CAMPECHE, CHIAPAS, GUERRERO, OAXACA, PUEBLA, QUINTANA ROO, TABASCO, TLAXCALA, VERACRUZ, YUCATAN
A7: 2 | B7: HIDALGO, NAYARIT
A8: 3 | B8: AGUASCALIENTES, COAHUILA, COLIMA, DURANGO, GUANAJUATO, JALISCO, MICHOACAN, ZACATECAS
A9: 4 | B9: CHIHUAHUA, NUEVO LEON, TAMAULIPAS
A10: 5 | B10: BAJA CALIFORNIA, BAJA CALIFORNIA SUR, MORELOS, QUERETARO, SAN LUIS POTOSI, SINALOA, SONORA
A11: 6 | B11: DISTRITO FEDERAL, EDO. DE MEXICO
A13: SUMA ASEGURADA | C13: DEDUCIBLE | E13: COASEGURO | G13: FORMA DE PAGO | H13: FORMA DE PAGO
A14: 500000 | C14: 4000 | E14: 0 | G14: A | H14: ANUAL
A15: 750000 | C15: 4500 | E15: 0.05 | G15: S | H15: SEMESTRAL
A16: 1000000 | C16: 5000 | E16: 0.1
A17: =+A16+1000000 -> 2000000 | C17: 6000 | E17: 0.15
A18: =+A17+1000000 -> 3000000 | C18: 7000 | E18: 0.2
A19: 4000000 | C19: 8000 | E19: 0.25
A20: 5000000 | C20: 9000 | E20: 0.3
A21: 6000000 | C21: 10000 | E21: 0.35
A22: 7000000 | C22: 20000 | E22: 0.4
A23: 8000000 | C23: 50000
A24: 9000000
A30: ZONA | B30: EMERGENCIA EN EL EXTRANJERO
A31: A | B31: CIUDADES A 20 KM. DE LA FRANJA FRONTERIZA CON LOS E.U.A.
A32: B | B32: BAJA CALIFORNIA, BAJA CALIFORNIA SUR, SONORA, CHIHUAHUA, COAHUILA, NUEVO LEÓN, CAMPECHE, YUCATÁN Y QUINTANA ROO
A33: C | B33: EL RESTO DEL PAÍS (EXCEPTO ZONA A Y ZONA B)
A35: COBERTURA EN EL EXTRANJERO
A36: ZONA A = CIUDADES A 20 KM. DE LA FRANJA FRONTERIZA CON LOS E.U.A.
A37: ZONA B = BAJA CALIFORNIA, BAJA CALIFORNIA SUR, SONORA, CHIHUAHUA, COAHUILA, NUEVO LEÓN, CAMPECHE, YUCATÁN Y QUINTANA ROO
A38: ZONA C = EL RESTO DEL PAÍS

Sheet CuadroEspecificacionesTARIFARIO (hidden)
J10: =TODAY() -> 2018-01-26
I12: REGIÓN | J12: =TITULAR!E3 -> 4
B14: CUADRO DE COBERTURAS
B15: - | C15: Tipo de Hospital | H15: Todos los hospitales
B17: - | C17: Suma Asegurada | H17: =+TITULAR!E5 -> 10000000 | I17: =IF(H17<>"SIN LÍMITE","M.N.","") -> M.N.
B19: - | C19: Deducible | F19: Enfermedad | H19: =+TITULAR!E6 -> 10000 | I19: M.N.
F20: Accidente | H20: 0 | I20: M.N.
B22: - | C22: Coaseguro | F22: Enfermedad | H22: =+TITULAR!E8 -> 0.1 | I22: =+COTIZACION!S26 -> 0
F23: Accidente | H23: 0
B25: =+COTIZACION!L29 -> 0 | C25: =+COTIZACION!M29 -> 0 | H25: =+TITULAR!E9 -> 0
B26: =+COTIZACION!L30 -> 0 | C26: =+COTIZACION!M30 -> 0 | H26: =+COTIZACION!R30 -> 0 | I26: =+COTIZACION!S30 -> 0
B29: =+COTIZACION!L33 -> 0 | C29: =+COTIZACION!M33 -> 0 | H29: =+COTIZACION!R33 -> 0
B30: =+COTIZACION!L34 -> 0 | C30: =+COTIZACION!M34 -> 0 | H30: =+COTIZACION!R34 -> 0
B31: =+COTIZACION!L35 -> 0 | C31: =+COTIZACION!M35 -> 0 | H31: =+COTIZACION!R35 -> 0
B32: =+COTIZACION!L36 -> 0 | C32: =+COTIZACION!M36 -> 0 | H32: =+COTIZACION!R36 -> 0
B33: =+COTIZACION!L37 -> 0 | C33: =+COTIZACION!M37 -> 0
C34: =+COTIZACION!M38 -> 0 | H34: =+COTIZACION!R38 -> 0
B35: =+COTIZACION!L39 -> 0 | C35: =+COTIZACION!M39 -> 0 | H35: =+COTIZACION!R39 -> 0
B36: =+COTIZACION!L40 -> 0 | C36: =+COTIZACION!M40 -> 0 | H36: =+COTIZACION!R40 -> 0
B37: =+COTIZACION!L41 -> 0 | C37: =+COTIZACION!M41 -> 0 | H37: =+COTIZACION!R41 -> 0
B38: =+COTIZACION!L42 -> 0 | C38: =+COTIZACION!M42 -> 0 | H38: =+COTIZACION!R42 -> 0
B39: =+COTIZACION!L43 -> 0 | C39: =+COTIZACION!M43 -> 0 | H39: =+COTIZACION!R43 -> 0
B40: =+COTIZACION!L44 -> 0 | C40: =+COTIZACION!M44 -> 0 | H40: =+COTIZACION!R44 -> 0
B41: =+COTIZACION!L45 -> 0 | C41: =+COTIZACION!M45 -> 0
C42: =+COTIZACION!M46 -> 0 | H42: =FACTORES!D37 -> 15000
B43: =+COTIZACION!L47 -> 0 | C43: =+COTIZACION!M47 -> 0
C44: =+COTIZACION!M48 -> 0 | H44: =+COTIZACION!R48 -> 0
B45: =+COTIZACION!L49 -> 0 | C45: =+COTIZACION!M49 -> 0
C46: =+COTIZACION!M50 -> 0 | H46: =+COTIZACION!R50 -> 0
B47: =+COTIZACION!L51 -> 0 | C47: =+COTIZACION!M51 -> 0 | H47: =+COTIZACION!R51 -> 0
C48: =+COTIZACION!M52 -> 0
B49: =+COTIZACION!L53 -> 0 | C49: =+COTIZACION!M53 -> 0 | H49: =+COTIZACION!R53 -> 0
B50: =+COTIZACION!L54 -> 0 | C50: =+COTIZACION!M54 -> 0
C51: =+COTIZACION!M55 -> 0
C52: =+COTIZACION!M56 -> 0
C53: =+COTIZACION!M57 -> 0
C54: =+COTIZACION!M58 -> 0 | H54: =+COTIZACION!R58 -> 0
B55: =+COTIZACION!L59 -> 0 | C55: =+COTIZACION!M59 -> 0 | H55: =+COTIZACION!R59 -> 0
B56: =+COTIZACION!L60 -> 0 | C56: =+COTIZACION!M60 -> 0
C57: =+COTIZACION!M61 -> 0 | H57: =+COTIZACION!R61 -> 0
B58: =+COTIZACION!L62 -> 0 | C58: =+COTIZACION!M62 -> 0 | H58: =+COTIZACION!R62 -> 0
B59: =+COTIZACION!L63 -> 0 | C59: =+COTIZACION!M63 -> 0
C60: =+COTIZACION!M64 -> 0 | H60: =+COTIZACION!R64 -> 0
B61: =+COTIZACION!L65 -> 0 | C61: =+COTIZACION!M65 -> 0 | H61: =+COTIZACION!R65 -> 0
B62: =+COTIZACION!L66 -> 0 | C62: =+COTIZACION!M66 -> 0 | H62: =+COTIZACION!R66 -> 0
B63: =+COTIZACION!L67 -> 0 | C63: =+COTIZACION!M67 -> 0 | H63: =+COTIZACION!R67 -> 0
B64: =+COTIZACION!L68 -> 0 | C64: =+COTIZACION!M68 -> 0 | H64: =+COTIZACION!R68 -> 0
B65: =+COTIZACION!L69 -> 0 | C65: =+COTIZACION!M69 -> 0 | H65: =+COTIZACION!R69 -> 0
B66: =+COTIZACION!L70 -> 0 | C66: =+COTIZACION!M70 -> 0 | H66: =+COTIZACION!R70 -> 0
B67: =+COTIZACION!L71 -> 0 | C67: =+COTIZACION!M71 -> 0 | H67: =+COTIZACION!R71 -> 0
B68: =+COTIZACION!L72 -> 0 | C68: =+COTIZACION!M72 -> 0 | H68: =+COTIZACION!R72 -> 0
B69: =+COTIZACION!L73 -> 0 | C69: =+COTIZACION!M73 -> 0 | H69: =+COTIZACION!R73 -> 0
B70: =+COTIZACION!L74 -> 0 | C70: =+COTIZACION!M74 -> 0 | H70: =+COTIZACION!R74 -> 0
B71: - | C71: En atención en Hospiten aplica deducible y coaseguro

Sheet COTIZACION (hidden)
B7: DATOS DE LA PÓLIZA
B8: Tipo de Póliza | D8: RENOVADA | E8: =+IF(AND(D8="NUEVA",D9="ANTES DEL 01/10/2016"),"NO ES VÁLIDA, RECONSIDERAR SU PRIMERA EMISIÓN",CONCATENATE("APLICA PARA AQUELLA PÓLIZA ",D8," CON PRIMER VIGENCIA EMITIDA ",D9)) -> APLICA PARA AQUELLA PÓLIZA RENOVADA CON PRIMER VIGENCIA EMITIDA ANTES DEL 01/10/2016
B9: Primera vigencia emitida en Seguros Banorte | D9: ANTES DEL 01/10/2016 | E9: =+IF(IFERROR(FACTORES!A37,"VALIDAR INICIO DE VIGENCIA")=0,"","VALIDAR INICIO DE VIGENCIA") -> VALIDAR INICIO DE VIGENCIA
B10: TIPO DE COTIZACIÓN | D10: INDIVIDUAL
B11: Suma Asegurada | D11: 10000000
B12: Deducible | D12: 10000 | E12: =+IF(D8="NUEVA ",IF(D12<10000,"Deducible no permitido para pólizas nuevas",""),"") -> 
B13: =+CONCATENATE("Coaseguro con tope a ",VLOOKUP(D13,FACTORES!C16:D20,2,FALSE)) -> Coaseguro con tope a $30,000 | D13: 0.1
B14: Estado | D14: NUEVO LEÓN
B15: Región | D15: =+VLOOKUP(D14,C310:D341,2,0) -> 4
B16: Eliminación de deducible por accidente | D16: SI
B17: Suma Asegurada Parto o Cesárea | D17: 15000
B18: Cobertura de Visión Incremental | D18: SI
B19: Cobertura de Indemnización por Enfermedad Grave | D19: 10000 | E19: =IF(AND(D19<>"NO",SUM(A27:A34)<1),"NO CUMPLE CON LOS LIMITES DE EDAD","") -> NO CUMPLE CON LOS LIMITES DE EDAD
B20: IVA | D20: 0.16
H21: DESCUENTO | M21: DESCUENTO
H23: 0 | M23: 0
B26: ASEGURADO | C26: NOMBRE | D26: SEXO | E26: EDAD | G26: Forma de Pago | H26: Primer Recibo | I26: Recibos Subsecuentes | J26: Total
A27: =IF($D$8="NUEVA ",IF(AND(E27>=18,E27<60),1,0),IF(AND(E27>=18,E27<65),1,0)) -> 0 | B27: Titular | D27: H | E27: 0 | F27: =IF(AND(D8="NUEVA ",D12<10000),"DEDUCIBLE INVÁLIDO",IF(D8="NUEVA ",IF(E27>64,"EDAD NO PERMITIDA",IF(D10="FAMILIAR",IF(E27<18,"EDAD NO PERMIDITA",""),"")),IF(D10="FAMILIAR",IF(E27<18,"EDAD NO PERMIDITA",""),""))) ->  | G27: ANUAL | H27: =+IMPRESION!K86 -> 9232.477543 | I27: 0 | J27: =+H27 -> 9232.477543
A28: =IF($D$8="NUEVA ",IF(AND(E28>=18,E28<60),1,0),IF(AND(E28>=18,E28<65),1,0)) -> 0 | B28: =IF(D10="FAMILIAR","Cónyuge","") ->  | F28: =IF($D$8="NUEVA ",IF(E28>64,"EDAD NO PERMITIDA"," ")," ") ->  | G28: SEMESTRAL | H28: =IF((IMPRESION!K81*RSEM/2+DER)*(1+$D$20)<1000,0,(IMPRESION!K81*RSEM/2+DER)*(1+$D$20)) -> 5221.383065 | I28: =IF(H28=0,0,(IMPRESION!K81*RSEM/2)*(1+$D$20)) -> 4409.383065 | J28: =+I28+H28 -> 9630.76613
A29: 0 | B29: =IF($D$10="FAMILIAR","Dependiente 1","") ->  | F29: =IF($D$8="NUEVA ",IF(E29>69,"EDAD NO PERMITIDA"," ")," ") ->  | G29: TRIMESTRAL | H29: =IF((IMPRESION!K81*RTRIM/4+DER)*(1+$D$20)<1000,0,(IMPRESION!K81*RTRIM/4+DER)*(1+$D$20)) -> 3064.267231 | I29: =IF(H29=0,0,(IMPRESION!K81*RTRIM/4)*(1+$D$20)) -> 2252.267231 | J29: =+I29*3+H29 -> 9821.068923
A30: 0 | B30: =IF($D$10="FAMILIAR","Dependiente 2","") ->  | G30: MENSUAL | H30: =IF((IMPRESION!K81*RMES/12+DER)*(1+$D$20)<1000,0,(IMPRESION!K81*RMES/12+DER)*(1+$D$20)) -> 1583.806937 | I30: =IF(H30=0,0,(IMPRESION!K81*RMES/12)*(1+$D$20)) -> 771.8069374 | J30: =+I30*11+H30 -> 10073.68325
A31: 0 | B31: =IF($D$10="FAMILIAR","Dependiente 3","") -> 
A32: 0 | B32: =IF($D$10="FAMILIAR","Dependiente 4","") -> 
A33: 0 | B33: =IF($D$10="FAMILIAR","Dependiente 5","") -> 
A34: 0 | B34: =IF($D$10="FAMILIAR","Dependiente 6","") ->  | G34: RECARGOS POR PAGO FRACCIONADO
G35: Forma de Pago | H35: %
B36: AGENTE | G36: SEMESTRAL | H36: 0.0473
G37: TRIMESTRAL | H37: 0.0699 | I37: FAVOR de Verificar si estos factores son los vigentes
G38: MENSUAL | H38: 0.0999
B39: Agente
B41: NOTA: LAS COTIZACIONES EN EDADES DE 65 A 79 AÑOS SOLO SON VALIDAS PARA RENOVACION LA EDAD DE CONTRATACION DE LA COBERTURA DE ENFERMEDADES GRAVES ES DE 18 A 59 AÑOS
A215: NO. | B215: REGIÓN
A216: 1 | B216: OAXACA, TABASCO, VERACRUZ, CAMPECHE, YUCATAN, CHIAPAS, GUERRERO
A217: 2 | B217: PUEBLA, TLAXCALA, HIDALGO, NAYARIT
A218: 3 | B218: AGUASCALIENTES, GUANAJUATO, JALISCO, MICHOACAN, COLIMA,ZACATECAS
A219: 4 | B219: COAHUILA, TAMAULIPAS, NUEVO LEON, DURANGO, CHIHUAHUA
A220: 5 | B220: SAN LUIS POTOSI, BAJA CALIFORNIA NORTE, BAJA CALIFORNIA SUR, SINALOA, SONORA, QUERETARO, MORELOS, QUINTANA ROO
A221: 6 | B221: DISTRITO FEDERAL, EDO. DE MEXICO
C223: DEDUCIBLE | E223: COASEGURO | H223: FORMA DE PAGO | K223: FP
C224: 3500
C225: 4000 | H225: A | I225: =IF(H27=0,"NO APLICA","ANUAL") -> ANUAL | K225: =IF(C21="ANUAL",1,IF(C21="SEMESTRAL",2,IF(C21="TRIMESTRAL",4,IF(C21="MENSUAL",12,1)))) -> 1
C226: 4500 | H226: S | I226: =IF(H28=0,"NO APLICA","SEMESTRAL") -> SEMESTRAL
C227: 5500 | E227: 0.1 | H227: T | I227: =IF(H29=0,"NO APLICA","TRIMESTRAL") -> TRIMESTRAL | K227: IVA
C228: 6000 | E228: 0.15 | H228: M | I228: =IF(H30=0,"NO APLICA","MENSUAL") -> MENSUAL | K228: 0.11
C229: 8000 | E229: 0.2 | H229: COBERTURA EN EL EXT | K229: 0.16
C230: 10000 | H230: S | I230: SI
C231: 15000 | H231: N | I231: NO
C232: 20000
C233: 25000 | H233: DEDUCIBLE CERO POR ACC
C234: 30000 | G234: Catalogo | H234: S | I234: SI
C235: 40000 | H235: N | I235: NO
C236: 50000
C237: 60000
C238: 70000 | H238: Tipo de Póliza
C239: 80000 | H239: NUEVA | I239: 0
C240: 90000 | H240: RENOVADA | I240: 1
C241: 100000 | H241: ANTES DEL 01/10/2016 | I241: 1
C242: 200000 | H242: A PARTIR DEL 01/10/2016 | I242: 0
C243: 300000
C244: 400000 | H244: =+CONCATENATE(H239,H242) -> NUEVA A PARTIR DEL 01/10/2016 | I244: 0
C245: 500000 | H245: =+CONCATENATE(H240,H241) -> RENOVADAANTES DEL 01/10/2016 | I245: 1
C246: 600000 | H246: =+CONCATENATE(H240,H242) -> RENOVADAA PARTIR DEL 01/10/2016 | I246: 0
C247: 700000
C248: 800000
C249: 900000
C250: 1000000
G252: 0
B253: INC EN PARTO O CESAREA | C253: PARTO O CESAREA | G253: 0.15 | H253: 25800 | I253: =+Base -> 25800
B254: SI | C254: 20000 | G254: 0.25
B255: NO | C255: 30000 | G255: 0.5
C256: 40000 | G256: 0.75
C257: 50000 | G257: 1
A259: ZONA | B259: EMERGENCIA EN EL EXTRANJERO
A260: A | B260: CIUDADES A 20 KM. DE LA FRANJA FRONTERIZA CON LOS E.U.A.
A261: B | B261: BAJA CALIFORNIA, BAJA CALIFORNIA SUR, SONORA, CHIHUAHUA, COAHUILA, NUEVO LEÓN, CAMPECHE, YUCATÁN Y QUINTANA ROO
A262: C | B262: EL RESTO DEL PAÍS (EXCEPTO ZONA A Y ZONA B)
A263: 0
A264: =1+A263 -> 1
A265: =1+A264 -> 2 | C265: TITULAR | D265: CÓNYUGE
A266: 3 | C266: H | D266: =IF((IF(C28=""," ",D27))="H","M",IF((IF(C28="","",D27))="M","H",IF((IF(C28="","",D27))="",""))) -> 
A267: 4 | C267: M
A268: 5
A269: 6
A270: 7 | C270: SUMA ASEGURADA | H270: ENF GVES
A271: 8 | C271: 200000 | E271: TIPO DE COTIZACIÓN | H271: NO
A272: 9 | C272: 250000 | E272: INDIVIDUAL | H272: 10000
A273: 10 | C273: 300000 | E273: FAMILIAR | H273: 20000
A274: 11 | C274: 350000 | H274: 30000
A275: 12 | C275: 400000 | H275: 40000
A276: 13 | C276: 450000 | H276: 50000
A277: 14 | C277: 500000 | H277: 75000
A278: 15 | C278: 550000 | H278: 100000
A279: 16 | C279: 600000 | H279: 150000
A280: 17 | C280: 650000 | H280: 200000
A281: 18 | C281: 700000 | H281: 250000
A282: 19 | C282: 750000 | H282: 300000
A283: 20 | C283: 1000000 | H283: 350000
A284: 21 | C284: 2000000 | H284: 400000
A285: 22 | C285: 3000000 | H285: 450000
A286: 23 | C286: 4000000 | H286: 500000
A287: 24 | C287: 5000000 | H287: 550000
A288: 25 | C288: 6000000 | H288: 600000
A289: 26 | C289: 7000000 | H289: 650000
A290: 27 | C290: 8000000 | H290: 700000
A291: 28 | C291: 9000000 | H291: 750000
A292: 29 | C292: 10000000 | H292: 800000
A293: 30 | C293: 20000000 | H293: 850000
A294: 31 | C294: 30000000
A295: 32 | C295: 40000000
A296: 33 | C296: 50000000
A297: 34 | C297: 70000000
A298: 35 | C298: 100000000
A299: 36 | C299: 18000000
A300: 37 | C300: 20000000
A301: 38 | C301: 22000000
A302: 39 | C302: 24000000
A303: 40 | C303: 26000000
A304: 41 | C304: 30000000
A305: 42
A306: 43
A307: 44
A308: 45
A309: 46 | C309: Estado | D309: REGIÓN | E309: Anterior
A310: 47 | C310: AGUASCALIENTES | D310: 3 | E310: 2
A311: 48 | C311: BAJA CALIFORNIA | D311: 2 | E311: 3
A312: 49 | C312: BAJA CALIFORNIA SUR | D312: 3 | E312: 3
A313: 50 | C313: CAMPECHE | D313: 1 | E313: 1
A314: 51 | C314: CHIAPAS | D314: 2 | E314: 1
A315: 52 | C315: CHIHUAHUA | D315: 4 | E315: 3
A316: 53 | C316: COAHUILA | D316: 4 | E316: 2
A317: 54 | C317: COLIMA | D317: 3 | E317: 2
A318: 55 | C318: CIUDAD DE MÉXICO | D318: 5 | E318: 4
A319: 56 | C319: DURANGO | D319: 3 | E319: 2
A320: 57 | C320: ESTADO DE MÉXICO | D320: 5 | E320: 4
A321: 58 | C321: GUANAJUATO | D321: 2 | E321: 2
A322: 59 | C322: GUERRERO | D322: 2 | E322: 1
A323: 60 | C323: HIDALGO | D323: 3 | E323: 1
A324: 61 | C324: JALISCO | D324: 3 | E324: 2
A325: 62 | C325: MICHOACÁN | D325: 3 | E325: 2
A326: 63 | C326: MORELOS | D326: 4 | E326: 3
A327: 64 | C327: NAYARIT | D327: 2 | E327: 1
A328: 65 | C328: NUEVO LEÓN | D328: 4 | E328: 3
A329: =1+A328 -> 66 | C329: OAXACA | D329: 1 | E329: 1
A330: =1+A329 -> 67 | C330: PUEBLA | D330: 2 | E330: 1
A331: =1+A330 -> 68 | C331: QUERÉTARO | D331: 3 | E331: 3
A332: =1+A331 -> 69 | C332: QUINTANA ROO | D332: 2 | E332: 1
A333: =1+A332 -> 70 | C333: SAN LUIS POTOSÍ | D333: 4 | E333: 3
A334: 71 | C334: SINALOA | D334: 3 | E334: 3
A335: 72 | C335: SONORA | D335: 4 | E335: 3
A336: 73 | C336: TABASCO | D336: 2 | E336: 1
A337: 74 | C337: TAMAULIPAS | D337: 4 | E337: 3
A338: 75 | C338: TLAXCALA | D338: 1 | E338: 1
A339: 76 | C339: VERACRUZ | D339: 2 | E339: 1
A340: 77 | C340: YUCATÁN | D340: 1 | E340: 1
A341: 78 | C341: ZACATECAS | D341: 3 | E341: 2
A342: 79
A343: 80
A344: 81
A345: 82
A346: 83
A347: 84
A348: 85
A349: 86
A350: 87
A351: 88
A352: 89
A353: 90
A354: =1+A353 -> 91
A355: =1+A354 -> 92
A356: =1+A355 -> 93
A357: =1+A356 -> 94
A358: 95
A359: 96
A360: 97
A361: 98
A362: 99
A363: 100

Sheet IMPRESION (hidden)
K6: =TODAY() -> 2018-01-26
B7: =+"Apreciable "&COTIZACION!C27 -> Apreciable
B9: =+"Agradecemos de antemano su preferencia y esperamos que la presente propuesta de Gastos Médicos "&COTIZACION!D10&" cumpla sus expectativas." -> Agradecemos de antemano su preferencia y esperamos que la presente propuesta de Gastos Médicos INDIVIDUAL cumpla sus expectativas.
B12: CUADRO DE COBERTURAS
B13: - | C13: Tipo de Hospital | I13: Hospitales del Plan
B15: - | C15: Suma Asegurada | I15: =+COTIZACION!D11 -> 10000000 | J15: =IF(I15<>"SIN LÍMITE","M.N.","") -> M.N.
B17: - | C17: Deducible por Accidente y Enfermedad | I17: =+TITULAR!E6 -> 10000 | J17: M.N.
B19: - | C19: Coaseguro | G19: Enfermedad | I19: =+CONCATENATE(TITULAR!E8*100,"% con tope de ",VLOOKUP(COTIZACION!D13,FACTORES!C16:D20,2,FALSE)&" M.N.") -> 10% con tope de $30,000 M.N.
G20: Accidente | I20: 0
B22: - | C22: Incremento al Catálogo | I22: =+TITULAR!E9 -> 0
B23: - | C23: Base de Honorarios Quirúrgicos | I23: Catálogo del Plan
B24: - | C24: Honorarios por visita intrahospitalaria | I24: Catálogo del Plan
B25: - | C25: Honorarios por consulta | I25: Catálogo del Plan
B26: - | C26: Honorarios por enfermera máximo 3 turnos por día durante 30 días | I26: Catálogo del Plan
B27: - | C27: Habitación Hospital | I27: Privado Estándar
B28: - | C28: Sala de operación y recuperación, medicamentos, consumo de oxígeno,
C29: servicios de terapia, tratamiento de diálisis y transfusiones de sangre | I29: Incluido
B30: - | C30: Renta de aparatos ortopédicos y prótesis | I30: Incluido
B31: - | C31: Ambulancia Terrestre | I31: Incluida
B32: - | C32: Reinstalación automática de suma asegurada | I32: Incluida
B33: - | C33: Gastos por donación de órganos | I33: 50000 | J33: =IF(I33="Excluido","","M.N") -> M.N
B34: - | C34: Renta diaria por hospitalización en un Centro de Asistencia Social máximo 30 días | I34: 150 | J34: =IF(I34="Excluido","","M.N") -> M.N
B35: - | C35: Gastos por Parto o Cesárea del Titular, Cónyuge o hija asegurada con periodo de
C36: espera de 10 meses sin deducible, ni coaseguro | I36: 15000 | J36: =IF(I36="Excluido","","M.N") -> M.N
B37: - | C37: Complicaciones del Embarazo y del Parto del Titular, Cónyuge o hija asegurada,
C38: con periodo de espera de 10 meses, con deducible y coaseguro | I38: Catálogo del Plan
B39: - | C39: Prematurez siempre que el nacimiento ocurra después de 10 meses de | I39: Suma Asegurada
C40: alta de la madre | I40: Básica | J40: =IF(I40="Excluido","","Por Evento") -> Por Evento
B41: - | C41: Preexistencia Declarada, con periodo de espera de 2 años, no aplica reconocimiento | I41: Incluida
C42: de antigüedad
B43: - | C43: Circuncisión, con periodo de espera de 1 año, no aplica reconocimiento de antigüedad | I43: Incluida
B44: - | C44: Padecimientos congénitos para nacidos dentro de la vigencia, dados de alta dentro
C45: de los 30 días posteriores al nacimiento y que la madre asegurada cumpla con el
C46: periodo de espera de 10 meses. Para los nacidos fuera de vigencia aplica periodo de
C47: espera de 12 meses. | I47: Incluido
B48: - | C48: SIDA, siempre que el asegurado se encuentre cubierto en Seguros Banorte al
C49: menos 4 años ininterrumpidos | I49: Incluido
B50: - | C50: Terapia Psicológica o Psiquiátrica | I50: Incluido
B51: - | C51: Xifósis, lordósis y escoliosis, con periodo de espera de 2 años,
C52: no aplica reconocimiento de antigüedad | I52: Incluido
B53: - | C53: Reconocimiento de Antigüedad, previa comprobación | I53: Incluido
B54: - | C54: Cobertura Sin Límite de Edad (de acuerdo a la cláusula de edad) | I54: Incluido
B55: - | C55: Cobertura de Visión | I55: Incluido
B56: - | C56: Cobertura Integral Dental y Visión | I56: Incluido
B57: - | C57: Servicios de Asistencia | I57: Incluido
C58: Coberturas Adicionales
B59: - | C59: Cobertura de Indemnización por Enfermedad Grave | I59: =IF(OR(COTIZACION!D19="NO",SUM(COTIZACION!A27:A34)<=0),"Excluido",COTIZACION!D19) -> Excluido | J59: =IF(I59="EXCLUIDO","","M.N.") -> 
B60: - | C60: Cobertura de Visión Incremental | I60: =IF(COTIZACION!D18="SI","Incluido","Excluido") -> Incluido
B61: - | C61: Eliminación de deducible por accidente | I61: =+IF(COTIZACION!D16="SI","Incluido","Excluido") -> Incluido
C63: Se cobrara doble deducible y coaseguro de póliza, a los asegurados que se atiendan en Hospiten México S.A de C.V
C64: Si el asegurado desea tratarse en hospitales o con médicos que no sean de la red del plan, se le aplicará el deducible contratado y un coaseguro
C65: del 20% sin tope de coaseguro, solo aplica pago vía reembolso.
C66: Si el asegurado se atiende con médico y hospital de red, se descuenta 3,000 de deducible y 5 puntos de coaseguro, siempre que la atención sea dentro de la misma
C67: zona de tarifa contratada o en una zona menor.
C68: Si la atención se da con médicos y hospitales de la red del plan, pero en una zona diferente a la de contratación, se aplicará deducible y coaseguro contratado
C70: PARTICIPANTES
C71: Nombre | H71: Edad | I71: Sexo | J71: Parentesco | K71: Prima Neta
K72: Anual
A73: =IF(AND(H73<>"",H73>69),1,0) -> 0 | C73: =IF(COTIZACION!C27="","",COTIZACION!C27) ->  | H73: =IF(COTIZACION!E27="","",COTIZACION!E27) -> 0 | I73: =IF(COTIZACION!D27="","",COTIZACION!D27) -> H | J73: =IF(COTIZACION!C27="","",COTIZACION!B27) ->  | K73: =IFERROR(IF(COTIZACION!F27<>"","",IF(H73="","",IF(I73="H",VLOOKUP(H73,TITULAR!$B$27:$G$112,5,0),IF(I73="M",VLOOKUP(H73,TITULAR!$B$27:$G$112,6,0),"")))),"") -> 7259.032364
A74: =IF(AND(H74<>"",H74>69),1,0) -> 0 | C74: =IF(COTIZACION!C28="","",COTIZACION!C28) ->  | H74: =IF(COTIZACION!$D$10="INDIVIDUAL","",IF(COTIZACION!E28="","",COTIZACION!E28)) ->  | I74: =IF(COTIZACION!D28="","",COTIZACION!D28) ->  | J74: =IF(COTIZACION!C28="","",COTIZACION!B28) ->  | K74: =IFERROR(IF(COTIZACION!F27<>"","",IF(H74="","",IF(I74="H",VLOOKUP(H74,CONYUGE!$B$21:$G$112,5,0),IF(I74="M",VLOOKUP(H74,CONYUGE!$B$21:$G$112,6,0),"")))),"") -> 
A75: =IF(AND(H75<>"",H75>69),1,0) -> 0 | C75: =IF(COTIZACION!C29="","",COTIZACION!C29) ->  | H75: =IF(COTIZACION!$D$10="INDIVIDUAL","",IF(COTIZACION!E29="","",COTIZACION!E29)) ->  | I75: =IF(COTIZACION!D29="","",COTIZACION!D29) ->  | J75: =IF(COTIZACION!C29="","",COTIZACION!B29) ->  | K75: =IFERROR(IF(COTIZACION!F27<>"","",IF(H75="","",IF(I75="H",VLOOKUP(H75,DEPENDIENTE!$B$21:$G$112,5,0),IF(I75="M",VLOOKUP(H75,DEPENDIENTE!$B$21:$G$112,6,0),"")))),"") -> 
A76: 0 | C76: =IF(COTIZACION!C30="","",COTIZACION!C30) ->  | H76: =IF(COTIZACION!$D$10="INDIVIDUAL","",IF(COTIZACION!E30="","",COTIZACION!E30)) ->  | I76: =IF(COTIZACION!D30="","",COTIZACION!D30) ->  | J76: =IF(COTIZACION!C30="","",COTIZACION!B30) ->  | K76: =IFERROR(IF(COTIZACION!F27<>"","",IF(H76="","",IF(I76="H",VLOOKUP(H76,DEPENDIENTE!$B$21:$G$112,5,0),IF(I76="M",VLOOKUP(H76,DEPENDIENTE!$B$21:$G$112,6,0),"")))),"") -> 
A77: 0 | C77: =IF(COTIZACION!C31="","",COTIZACION!C31) ->  | H77: =IF(COTIZACION!$D$10="INDIVIDUAL","",IF(COTIZACION!E31="","",COTIZACION!E31)) ->  | I77: =IF(COTIZACION!D31="","",COTIZACION!D31) ->  | J77: =IF(COTIZACION!C31="","",COTIZACION!B31) ->  | K77: =IFERROR(IF(COTIZACION!F27<>"","",IF(H77="","",IF(I77="H",VLOOKUP(H77,DEPENDIENTE!$B$21:$G$112,5,0),IF(I77="M",VLOOKUP(H77,DEPENDIENTE!$B$21:$G$112,6,0),"")))),"") -> 
A78: 0 | C78: =IF(COTIZACION!C32="","",COTIZACION!C32) ->  | H78: =IF(COTIZACION!$D$10="INDIVIDUAL","",IF(COTIZACION!E32="","",COTIZACION!E32)) ->  | I78: =IF(COTIZACION!D32="","",COTIZACION!D32) ->  | J78: =IF(COTIZACION!C32="","",COTIZACION!B32) ->  | K78: =IFERROR(IF(COTIZACION!F27<>"","",IF(H78="","",IF(I78="H",VLOOKUP(H78,DEPENDIENTE!$B$21:$G$112,5,0),IF(I78="M",VLOOKUP(H78,DEPENDIENTE!$B$21:$G$112,6,0),"")))),"") -> 
A79: 0 | C79: =IF(COTIZACION!C33="","",COTIZACION!C33) ->  | H79: =IF(COTIZACION!$D$10="INDIVIDUAL","",IF(COTIZACION!E33="","",COTIZACION!E33)) ->  | I79: =IF(COTIZACION!D33="","",COTIZACION!D33) ->  | J79: =IF(COTIZACION!C33="","",COTIZACION!B33) ->  | K79: =IFERROR(IF(COTIZACION!F27<>"","",IF(H79="","",IF(I79="H",VLOOKUP(H79,DEPENDIENTE!$B$21:$G$112,5,0),IF(I79="M",VLOOKUP(H79,DEPENDIENTE!$B$21:$G$112,6,0),"")))),"") -> 
A80: 0 | C80: =IF(COTIZACION!C34="","",COTIZACION!C34) ->  | H80: =IF(COTIZACION!$D$10="INDIVIDUAL","",IF(COTIZACION!E34="","",COTIZACION!E34)) ->  | I80: =IF(COTIZACION!D34="","",COTIZACION!D34) ->  | J80: =IF(COTIZACION!C34="","",COTIZACION!B34) ->  | K80: =IFERROR(IF(COTIZACION!F27<>"","",IF(H80="","",IF(I80="H",VLOOKUP(H80,DEPENDIENTE!$B$21:$G$112,5,0),IF(I80="M",VLOOKUP(H80,DEPENDIENTE!$B$21:$G$112,6,0),"")))),"") -> 
I81: Prima Total Anual | K81: =IF(COTIZACION!D8="NUEVA ",IF(A100=0,SUM(K73:K80),0),SUM(K73:K80)) -> 7259.032364
I82: Recargo por Pago Fracc. | K82: =+TITULAR!G17 -> 0
I83: Derecho de Póliza | K83: =IF(K81=0,0,+TITULAR!I25) -> 700
I84: Subtotal | K84: =+K81+K83 -> 7959.032364
C85: REGIÓN DE TARIFA: | E85: =+COTIZACION!D14 -> NUEVO LEÓN | I85: I.V.A. | K85: =+K84*TITULAR!K25 -> 1273.445178
I86: Prima Total Anual | K86: =SUM(K84:K85) -> 9232.477543
C87: AGENTE: | E87: =IF(COTIZACION!C39="","",COTIZACION!C39) -> 
C89: Forma de pago | E89: Primer recibo | F89: Recibos subsecuentes | G89: Total
C90: =+COTIZACION!G27 -> ANUAL | E90: =IF(K81=0,0,(K81/(1+K82)+DER)*(1+COTIZACION!$D$20)) -> 9232.477543 | F90: 0 | G90: =+F90+E90 -> 9232.477543
C91: ="SEMESTRAL (Recargo "&COTIZACION!H36*100&"%)" -> SEMESTRAL (Recargo 4.73%) | E91: =+COTIZACION!H28 -> 5221.383065 | F91: =+COTIZACION!I28 -> 4409.383065 | G91: =+F91+E91 -> 9630.76613
C92: ="TRIMESTRAL (Recargo "&COTIZACION!H37*100&"%)" -> TRIMESTRAL (Recargo 6.99%) | E92: =+COTIZACION!H29 -> 3064.267231 | F92: =+COTIZACION!I29 -> 2252.267231 | G92: =+F92*3+E92 -> 9821.068923
C93: ="MENSUAL (Recargo "&COTIZACION!H38*100&"%)" -> MENSUAL (Recargo 9.99%) | E93: =+COTIZACION!H30 -> 1583.806937 | F93: =+COTIZACION!I30 -> 771.8069374 | G93: =+F93*11+E93 -> 10073.68325
C95: Notas:
C96: *Este producto cuenta con exclusiones y limitaciones, las cuales pueden ser consultadas en las Condiciones Generales del producto en la página
C97: www.segurosbanorte.com.mx
C98: * Esta cotización tiene una validez de 15 días a partir de su fecha de elaboración. La edad limite de aceptación es hasta los 64 años. * El recargo por pago fraccionado está sujeto a cambio sin previo aviso.
A100: =SUM(A73:A80) -> 0 | B100: =+CONCATENATE("EN SEGUROS BANORTE ESTA COTIZACIÓN ",COTIZACION!E8) -> EN SEGUROS BANORTE ESTA COTIZACIÓN APLICA PARA AQUELLA PÓLIZA RENOVADA CON PRIMER VIGENCIA EMITIDA ANTES DEL 01/10/2016
C102: Tarifa Esencial Vig: Marzo 01, 2018
A219: FP
A220: =IF(#REF!="ANUAL",1,IF(#REF!="SEMESTRAL",2,IF(#REF!="TRIMESTRAL",4,IF(#REF!="MENSUAL",12,1)))) -> 
A222: IVA
A223: 0.1
A224: 0.15

Sheet TARIFARIO (hidden)
B7: Tipo de póliza | D7: =+COTIZACION!D8 -> RENOVADA | J7: Región de tarifa | L7: =+COTIZACION!D15 -> 4
B9: SUMA ASEGURADA: | D9: =TITULAR!E5 -> 10000000 | F9: SUMA ASEGURADA: | H9: =CONYUGE!E5 -> 10000000 | J9: SUMA ASEGURADA: | L9: =DEPENDIENTE!E5 -> 10000000
B10: DEDUCIBLE: | D10: =TITULAR!E6 -> 10000 | F10: DEDUCIBLE: | H10: =CONYUGE!E6 -> 10000 | J10: DEDUCIBLE: | L10: =DEPENDIENTE!E6 -> 10000
B11: COASEGURO: | D11: =TITULAR!E8 -> 0.1 | F11: COASEGURO: | H11: =CONYUGE!E7 -> 0.1 | J11: COASEGURO: | L11: =DEPENDIENTE!E7 -> 0.1
B13: Prima Total Titular | F13: Prima Total Cónyuge | J13: Prima Total Dependiente
B15: EDAD | C15: HOMBRE | D15: MUJER | F15: EDAD | G15: HOMBRE | H15: MUJER | J15: EDAD | K15: HOMBRE | L15: MUJER
B16: 18 | C16: =IFERROR(TITULAR!J45,0) -> 9192.956343 | D16: =IFERROR(TITULAR!K45,0) -> 9199.336343 | F16: 18 | G16: =IFERROR(+CONYUGE!J39,0) -> 7499.2376 | H16: =IFERROR(+CONYUGE!K39,0) -> 7505.6176 | J16: 0 - 5 | K16: =IFERROR(DEPENDIENTE!J26,0) -> 7538.7588 | L16: =IFERROR(DEPENDIENTE!K26,0) -> 7563.6524
B17: =+B16+1 -> 19 | C17: =IFERROR(TITULAR!J46,0) -> 9389.390743 | D17: =IFERROR(TITULAR!K46,0) -> 9276.476343 | F17: =+F16+1 -> 19 | G17: =IFERROR(+CONYUGE!J40,0) -> 7695.672 | H17: =IFERROR(+CONYUGE!K40,0) -> 7582.7576 | J17: 6 | K17: =IFERROR(DEPENDIENTE!J27,0) -> 7538.7588 | L17: =IFERROR(DEPENDIENTE!K27,0) -> 7563.6524
B18: =+B17+1 -> 20 | C18: =IFERROR(TITULAR!J47,0) -> 9611.333543 | D18: =IFERROR(TITULAR!K47,0) -> 10258.75274 | F18: =+F17+1 -> 20 | G18: =IFERROR(+CONYUGE!J41,0) -> 7917.6148 | H18: =IFERROR(+CONYUGE!K41,0) -> 8565.034 | J18: =+J17+1 -> 7 | K18: =IFERROR(DEPENDIENTE!J28,0) -> 7538.7588 | L18: =IFERROR(DEPENDIENTE!K28,0) -> 7563.6524
B19: 21 | C19: =IFERROR(TITULAR!J48,0) -> 10118.17234 | D19: =IFERROR(TITULAR!K48,0) -> 12099.95114 | F19: 21 | G19: =IFERROR(+CONYUGE!J42,0) -> 8424.4536 | H19: =IFERROR(+CONYUGE!K42,0) -> 10406.2324 | J19: =+J18+1 -> 8 | K19: =IFERROR(DEPENDIENTE!J29,0) -> 7538.7588 | L19: =IFERROR(DEPENDIENTE!K29,0) -> 7563.6524
B20: 22 | C20: =IFERROR(TITULAR!J49,0) -> 10416.33874 | D20: =IFERROR(TITULAR!K49,0) -> 12488.81794 | F20: 22 | G20: =IFERROR(+CONYUGE!J43,0) -> 8722.62 | H20: =IFERROR(+CONYUGE!K43,0) -> 10795.0992 | J20: 9 | K20: =IFERROR(DEPENDIENTE!J30,0) -> 7538.7588 | L20: =IFERROR(DEPENDIENTE!K30,0) -> 7563.6524
B21: 23 | C21: =IFERROR(TITULAR!J50,0) -> 10889.27074 | D21: =IFERROR(TITULAR!K50,0) -> 12887.79994 | F21: 23 | G21: =IFERROR(+CONYUGE!J44,0) -> 9195.552 | H21: =IFERROR(+CONYUGE!K44,0) -> 11194.0812 | J21: 10 | K21: =IFERROR(DEPENDIENTE!J31,0) -> 7538.7588 | L21: =IFERROR(DEPENDIENTE!K31,0) -> 7563.6524
B22: 24 | C22: =IFERROR(TITULAR!J51,0) -> 11197.73794 | D22: =IFERROR(TITULAR!K51,0) -> 13306.03794 | F22: 24 | G22: =IFERROR(+CONYUGE!J45,0) -> 9504.0192 | H22: =IFERROR(+CONYUGE!K45,0) -> 11612.3192 | J22: 11 | K22: =IFERROR(DEPENDIENTE!J32,0) -> 7606.004 | L22: =IFERROR(DEPENDIENTE!K32,0) -> 7560.6712
B23: 25 | C23: =IFERROR(TITULAR!J52,0) -> 11507.06354 | D23: =IFERROR(TITULAR!K52,0) -> 13739.50674 | F23: 25 | G23: =IFERROR(+CONYUGE!J46,0) -> 9813.3448 | H23: =IFERROR(+CONYUGE!K46,0) -> 12045.788 | J23: 12 | K23: =IFERROR(DEPENDIENTE!J33,0) -> 7583.6624 | L23: =IFERROR(DEPENDIENTE!K33,0) -> 7617.9056
B24: 26 | C24: =IFERROR(TITULAR!J53,0) -> 12051.53274 | D24: =IFERROR(TITULAR!K53,0) -> 14119.65034 | F24: 26 | G24: =IFERROR(+CONYUGE!J47,0) -> 10357.814 | H24: =IFERROR(+CONYUGE!K47,0) -> 12425.9316 | J24: 13 | K24: =IFERROR(DEPENDIENTE!J34,0) -> 7539.2924 | L24: =IFERROR(DEPENDIENTE!K34,0) -> 7580.4376
B25: 27 | C25: =IFERROR(TITULAR!J54,0) -> 12439.19314 | D25: =IFERROR(TITULAR!K54,0) -> 14584.56674 | F25: 27 | G25: =IFERROR(+CONYUGE!J48,0) -> 10745.4744 | H25: =IFERROR(+CONYUGE!K48,0) -> 12890.848 | J25: 14 | K25: =IFERROR(DEPENDIENTE!J35,0) -> 7378.5744 | L25: =IFERROR(DEPENDIENTE!K35,0) -> 7463.9272
B26: 28 | C26: =IFERROR(TITULAR!J55,0) -> 12966.45954 | D26: =IFERROR(TITULAR!K55,0) -> 15080.73354 | F26: 28 | G26: =IFERROR(+CONYUGE!J49,0) -> 11272.7408 | H26: =IFERROR(+CONYUGE!K49,0) -> 13387.0148 | J26: 15 | K26: =IFERROR(DEPENDIENTE!J36,0) -> 7399.988 | L26: =IFERROR(DEPENDIENTE!K36,0) -> 7367.8908
B27: 29 | C27: =IFERROR(TITULAR!J56,0) -> 13455.71274 | D27: =IFERROR(TITULAR!K56,0) -> 15581.42434 | F27: 29 | G27: =IFERROR(+CONYUGE!J50,0) -> 11761.994 | H27: =IFERROR(+CONYUGE!K50,0) -> 13887.7056 | J27: 16 | K27: =IFERROR(DEPENDIENTE!J37,0) -> 7301.62 | L27: =IFERROR(DEPENDIENTE!K37,0) -> 6932.1832
B28: 30 | C28: =IFERROR(TITULAR!J57,0) -> 13910.85034 | D28: =IFERROR(TITULAR!K57,0) -> 16131.99514 | F28: 30 | G28: =IFERROR(+CONYUGE!J51,0) -> 12217.1316 | H28: =IFERROR(+CONYUGE!K51,0) -> 14438.2764 | J28: 17 | K28: =IFERROR(DEPENDIENTE!J38,0) -> 7338.1948 | L28: =IFERROR(DEPENDIENTE!K38,0) -> 7019.8096
B29: 31 | C29: =IFERROR(TITULAR!J58,0) -> 14348.23994 | D29: =IFERROR(TITULAR!K58,0) -> 16697.39074 | F29: 31 | G29: =IFERROR(+CONYUGE!J52,0) -> 12654.5212 | H29: =IFERROR(+CONYUGE!K52,0) -> 15003.672 | J29: 18 | K29: =IFERROR(DEPENDIENTE!J39,0) -> 7499.2376 | L29: =IFERROR(DEPENDIENTE!K39,0) -> 7505.6176
B30: 32 | C30: =IFERROR(TITULAR!J59,0) -> 15028.25514 | D30: =IFERROR(TITULAR!K59,0) -> 17271.84594 | F30: 32 | G30: =IFERROR(+CONYUGE!J53,0) -> 13334.5364 | H30: =IFERROR(+CONYUGE!K53,0) -> 15578.1272 | J30: 19 | K30: =IFERROR(DEPENDIENTE!J40,0) -> 7695.672 | L30: =IFERROR(DEPENDIENTE!K40,0) -> 7582.7576
B31: 33 | C31: =IFERROR(TITULAR!J60,0) -> 15442.36354 | D31: =IFERROR(TITULAR!K60,0) -> 17857.33274 | F31: 33 | G31: =IFERROR(+CONYUGE!J54,0) -> 13748.6448 | H31: =IFERROR(+CONYUGE!K54,0) -> 16163.614 | J31: 20 | K31: =IFERROR(DEPENDIENTE!J41,0) -> 7917.6148 | L31: =IFERROR(DEPENDIENTE!K41,0) -> 8565.034
B32: 34 | C32: =IFERROR(TITULAR!J61,0) -> 16122.21634 | D32: =IFERROR(TITULAR!K61,0) -> 18484.18514 | F32: 34 | G32: =IFERROR(+CONYUGE!J55,0) -> 14428.4976 | H32: =IFERROR(+CONYUGE!K55,0) -> 16790.4664 | J32: 21 | K32: =IFERROR(DEPENDIENTE!J42,0) -> 8424.4536 | L32: =IFERROR(DEPENDIENTE!K42,0) -> 10406.2324
B33: 35 | C33: =IFERROR(TITULAR!J62,0) -> 16830.91834 | D33: =IFERROR(TITULAR!K62,0) -> 19148.43594 | F33: 35 | G33: =IFERROR(+CONYUGE!J56,0) -> 15137.1996 | H33: =IFERROR(+CONYUGE!K56,0) -> 17454.7172 | J33: 22 | K33: =IFERROR(DEPENDIENTE!J43,0) -> 8722.62 | L33: =IFERROR(DEPENDIENTE!K43,0) -> 10795.0992
B34: 36 | C34: =IFERROR(TITULAR!J63,0) -> 17409.76994 | D34: =IFERROR(TITULAR!K63,0) -> 19829.30954 | F34: 36 | G34: =IFERROR(+CONYUGE!J57,0) -> 15716.0512 | H34: =IFERROR(+CONYUGE!K57,0) -> 18135.5908 | J34: 23 | K34: =IFERROR(DEPENDIENTE!J44,0) -> 9195.552 | L34: =IFERROR(DEPENDIENTE!K44,0) -> 11194.0812
B35: 37 | C35: =IFERROR(TITULAR!J64,0) -> 18179.62714 | D35: =IFERROR(TITULAR!K64,0) -> 20588.85434 | F35: 37 | G35: =IFERROR(+CONYUGE!J58,0) -> 16485.9084 | H35: =IFERROR(+CONYUGE!K58,0) -> 18895.1356 | J35: 24 | K35: =IFERROR(DEPENDIENTE!J45,0) -> 9504.0192 | L35: =IFERROR(DEPENDIENTE!K45,0) -> 11612.3192
B36: 38 | C36: =IFERROR(TITULAR!J65,0) -> 18973.57754 | D36: =IFERROR(TITULAR!K65,0) -> 21320.99994 | F36: 38 | G36: =IFERROR(+CONYUGE!J59,0) -> 17279.8588 | H36: =IFERROR(+CONYUGE!K59,0) -> 19627.2812
B37: 39 | C37: =IFERROR(TITULAR!J66,0) -> 19829.88954 | D37: =IFERROR(TITULAR!K66,0) -> 22108.67474 | F37: 39 | G37: =IFERROR(+CONYUGE!J60,0) -> 18136.1708 | H37: =IFERROR(+CONYUGE!K60,0) -> 20414.956
B38: 40 | C38: =IFERROR(TITULAR!J67,0) -> 20411.57154 | D38: =IFERROR(TITULAR!K67,0) -> 22924.89714 | F38: 40 | G38: =IFERROR(+CONYUGE!J61,0) -> 18717.8528 | H38: =IFERROR(+CONYUGE!K61,0) -> 21231.1784
B39: 41 | C39: =IFERROR(TITULAR!J68,0) -> 21048.63194 | D39: =IFERROR(TITULAR!K68,0) -> 23781.00034 | F39: 41 | G39: =IFERROR(+CONYUGE!J62,0) -> 19354.9132 | H39: =IFERROR(+CONYUGE!K62,0) -> 22087.2816
B40: 42 | C40: =IFERROR(TITULAR!J69,0) -> 21737.70674 | D40: =IFERROR(TITULAR!K69,0) -> 24671.92674 | F40: 42 | G40: =IFERROR(+CONYUGE!J63,0) -> 20043.988 | H40: =IFERROR(+CONYUGE!K63,0) -> 22978.208
B41: 43 | C41: =IFERROR(TITULAR!J70,0) -> 22474.38794 | D41: =IFERROR(TITULAR!K70,0) -> 25598.73194 | F41: 43 | G41: =IFERROR(+CONYUGE!J64,0) -> 20780.6692 | H41: =IFERROR(+CONYUGE!K64,0) -> 23905.0132
B42: 44 | C42: =IFERROR(TITULAR!J71,0) -> 23299.87874 | D42: =IFERROR(TITULAR!K71,0) -> 26696.79954 | F42: 44 | G42: =IFERROR(+CONYUGE!J65,0) -> 21606.16 | H42: =IFERROR(+CONYUGE!K65,0) -> 25003.0808
B43: 45 | C43: =IFERROR(TITULAR!J72,0) -> 24199.63274 | D43: =IFERROR(TITULAR!K72,0) -> 27511.40954 | F43: 45 | G43: =IFERROR(+CONYUGE!J66,0) -> 22505.914 | H43: =IFERROR(+CONYUGE!K66,0) -> 25817.6908
B44: 46 | C44: =IFERROR(TITULAR!J73,0) -> 25186.07354 | D44: =IFERROR(TITULAR!K73,0) -> 28398.12514 | F44: 46 | G44: =IFERROR(+CONYUGE!J67,0) -> 23492.3548 | H44: =IFERROR(+CONYUGE!K67,0) -> 26704.4064
B45: 47 | C45: =IFERROR(TITULAR!J74,0) -> 26269.17714 | D45: =IFERROR(TITULAR!K74,0) -> 29644.82354 | F45: 47 | G45: =IFERROR(+CONYUGE!J68,0) -> 24575.4584 | H45: =IFERROR(+CONYUGE!K68,0) -> 27951.1048
B46: 48 | C46: =IFERROR(TITULAR!J75,0) -> 27446.86714 | D46: =IFERROR(TITULAR!K75,0) -> 30677.83834 | F46: 48 | G46: =IFERROR(+CONYUGE!J69,0) -> 25753.1484 | H46: =IFERROR(+CONYUGE!K69,0) -> 28984.1196
B47: 49 | C47: =IFERROR(TITULAR!J76,0) -> 28738.27194 | D47: =IFERROR(TITULAR!K76,0) -> 31791.98354 | F47: 49 | G47: =IFERROR(+CONYUGE!J70,0) -> 27044.5532 | H47: =IFERROR(+CONYUGE!K70,0) -> 30098.2648
B48: 50 | C48: =IFERROR(TITULAR!J77,0) -> 30157.87994 | D48: =IFERROR(TITULAR!K77,0) -> 32974.04674 | F48: 50 | G48: =IFERROR(+CONYUGE!J71,0) -> 28464.1612 | H48: =IFERROR(+CONYUGE!K71,0) -> 31280.328
B49: 51 | C49: =IFERROR(TITULAR!J78,0) -> 31690.83154 | D49: =IFERROR(TITULAR!K78,0) -> 34240.02434 | F49: 51 | G49: =IFERROR(+CONYUGE!J72,0) -> 29997.1128 | H49: =IFERROR(+CONYUGE!K72,0) -> 32546.3056
B50: 52 | C50: =IFERROR(TITULAR!J79,0) -> 33365.77874 | D50: =IFERROR(TITULAR!K79,0) -> 35600.68114 | F50: 52 | G50: =IFERROR(+CONYUGE!J73,0) -> 31672.06 | H50: =IFERROR(+CONYUGE!K73,0) -> 33906.9624
B51: 53 | C51: =IFERROR(TITULAR!J80,0) -> 35170.62274 | D51: =IFERROR(TITULAR!K80,0) -> 37062.17674 | F51: 53 | G51: =IFERROR(+CONYUGE!J74,0) -> 33476.904 | H51: =IFERROR(+CONYUGE!K74,0) -> 35368.458
B52: 54 | C52: =IFERROR(TITULAR!J81,0) -> 37129.09714 | D52: =IFERROR(TITULAR!K81,0) -> 38619.69714 | F52: 54 | G52: =IFERROR(+CONYUGE!J75,0) -> 35435.3784 | H52: =IFERROR(+CONYUGE!K75,0) -> 36925.9784
B53: 55 | C53: =IFERROR(TITULAR!J82,0) -> 39236.15594 | D53: =IFERROR(TITULAR!K82,0) -> 39842.60394 | F53: 55 | G53: =IFERROR(+CONYUGE!J76,0) -> 37542.4372 | H53: =IFERROR(+CONYUGE!K76,0) -> 38148.8852
B54: 56 | C54: =IFERROR(TITULAR!J83,0) -> 41510.89274 | D54: =IFERROR(TITULAR!K83,0) -> 42314.51754 | F54: 56 | G54: =IFERROR(+CONYUGE!J77,0) -> 39817.174 | H54: =IFERROR(+CONYUGE!K77,0) -> 40620.7988
B55: 57 | C55: =IFERROR(TITULAR!J84,0) -> 43970.40594 | D55: =IFERROR(TITULAR!K84,0) -> 43799.80474 | F55: 57 | G55: =IFERROR(+CONYUGE!J78,0) -> 42276.6872 | H55: =IFERROR(+CONYUGE!K78,0) -> 42106.086
B56: 58 | C56: =IFERROR(TITULAR!J85,0) -> 45717.34274 | D56: =IFERROR(TITULAR!K85,0) -> 45417.52914 | F56: 58 | G56: =IFERROR(+CONYUGE!J79,0) -> 44023.624 | H56: =IFERROR(+CONYUGE!K79,0) -> 43723.8104
B57: 59 | C57: =IFERROR(TITULAR!J86,0) -> 48472.48194 | D57: =IFERROR(TITULAR!K86,0) -> 46106.82434 | F57: 59 | G57: =IFERROR(+CONYUGE!J80,0) -> 46778.7632 | H57: =IFERROR(+CONYUGE!K80,0) -> 44413.1056
B58: 60 | C58: =IFERROR(TITULAR!J87,0) -> 51172.24274 | D58: =IFERROR(TITULAR!K87,0) -> 49606.01074 | F58: 60 | G58: =IFERROR(+CONYUGE!J81,0) -> 49478.524 | H58: =IFERROR(+CONYUGE!K81,0) -> 47912.292
B59: 61 | C59: =IFERROR(TITULAR!J88,0) -> 53757.53474 | D59: =IFERROR(TITULAR!K88,0) -> 51566.15554 | F59: 61 | G59: =IFERROR(+CONYUGE!J82,0) -> 52063.816 | H59: =IFERROR(+CONYUGE!K82,0) -> 49872.4368
B60: 62 | C60: =IFERROR(TITULAR!J89,0) -> 56481.24954 | D60: =IFERROR(TITULAR!K89,0) -> 53631.37314 | F60: 62 | G60: =IFERROR(+CONYUGE!J83,0) -> 54787.5308 | H60: =IFERROR(+CONYUGE!K83,0) -> 51937.6544
B61: 63 | C61: =IFERROR(TITULAR!J90,0) -> 59314.22474 | D61: =IFERROR(TITULAR!K90,0) -> 55783.47474 | F61: 63 | G61: =IFERROR(+CONYUGE!J84,0) -> 57620.506 | H61: =IFERROR(+CONYUGE!K84,0) -> 54089.756
B62: 64 | C62: =IFERROR(TITULAR!J91,0) -> 62305.37754 | D62: =IFERROR(TITULAR!K91,0) -> 58081.51594 | F62: 64 | G62: =IFERROR(+CONYUGE!J85,0) -> 60611.6588 | H62: =IFERROR(+CONYUGE!K85,0) -> 56387.7972
B63: 65 | C63: =IFERROR(TITULAR!J92,0) -> 65355.69034 | D63: =IFERROR(TITULAR!K92,0) -> 60403.23274 | F63: 65 | G63: =IFERROR(+CONYUGE!J86,0) -> 63661.9716 | H63: =IFERROR(+CONYUGE!K86,0) -> 58709.514
B64: 66 | C64: =IFERROR(TITULAR!J93,0) -> 68616.43874 | D64: =IFERROR(TITULAR!K93,0) -> 62957.21634 | F64: 66 | G64: =IFERROR(+CONYUGE!J87,0) -> 66922.72 | H64: =IFERROR(+CONYUGE!K87,0) -> 61263.4976
B65: 67 | C65: =IFERROR(TITULAR!J94,0) -> 72019.79754 | D65: =IFERROR(TITULAR!K94,0) -> 65408.37754 | F65: 67 | G65: =IFERROR(+CONYUGE!J88,0) -> 70326.0788 | H65: =IFERROR(+CONYUGE!K88,0) -> 63714.6588
B66: 68 | C66: =IFERROR(TITULAR!J95,0) -> 75515.50394 | D66: =IFERROR(TITULAR!K95,0) -> 68103.45194 | F66: 68 | G66: =IFERROR(+CONYUGE!J89,0) -> 73821.7852 | H66: =IFERROR(+CONYUGE!K89,0) -> 66409.7332
B67: 69 | C67: =IFERROR(TITULAR!J96,0) -> 79197.35554 | D67: =IFERROR(TITULAR!K96,0) -> 70998.90474 | F67: 69 | G67: =IFERROR(+CONYUGE!J90,0) -> 77503.6368 | H67: =IFERROR(+CONYUGE!K90,0) -> 69305.186
B73: SUMA ASEGURADA: | D73: =+D9 -> 10000000
B74: DEDUCIBLE: | D74: =+D10 -> 10000
B75: COASEGURO: | D75: =+D11 -> 0.1
B77: Prima Total Titular Menor de Edad
B79: EDAD | C79: HOMBRE | D79: MUJER
B80: 0 - 5 | C80: =IFERROR(TITULAR!J32,0) -> 9232.477543 | D80: =IFERROR(TITULAR!K32,0) -> 9257.371143
B81: 6 | C81: =IFERROR(TITULAR!J33,0) -> 9232.477543 | D81: =IFERROR(TITULAR!K33,0) -> 9257.371143
B82: =+B81+1 -> 7 | C82: =IFERROR(TITULAR!J34,0) -> 9232.477543 | D82: =IFERROR(TITULAR!K34,0) -> 9257.371143
B83: =+B82+1 -> 8 | C83: =IFERROR(TITULAR!J35,0) -> 9232.477543 | D83: =IFERROR(TITULAR!K35,0) -> 9257.371143
B84: 9 | C84: =IFERROR(TITULAR!J36,0) -> 9232.477543 | D84: =IFERROR(TITULAR!K36,0) -> 9257.371143
B85: 10 | C85: =IFERROR(TITULAR!J37,0) -> 9232.477543 | D85: =IFERROR(TITULAR!K37,0) -> 9257.371143
B86: 11 | C86: =IFERROR(TITULAR!J38,0) -> 9299.722743 | D86: =IFERROR(TITULAR!K38,0) -> 9254.389943
B87: 12 | C87: =IFERROR(TITULAR!J39,0) -> 9277.381143 | D87: =IFERROR(TITULAR!K39,0) -> 9311.624343
B88: 13 | C88: =IFERROR(TITULAR!J40,0) -> 9233.011143 | D88: =IFERROR(TITULAR!K40,0) -> 9274.156343
B89: 14 | C89: =IFERROR(TITULAR!J41,0) -> 9072.293143 | D89: =IFERROR(TITULAR!K41,0) -> 9157.645943
B90: 15 | C90: =IFERROR(TITULAR!J42,0) -> 9093.706743 | D90: =IFERROR(TITULAR!K42,0) -> 9061.609543
B91: 16 | C91: =IFERROR(TITULAR!J43,0) -> 8995.338743 | D91: =IFERROR(TITULAR!K43,0) -> 8625.901943
B92: 17 | C92: =IFERROR(TITULAR!J44,0) -> 9031.913543 | D92: =IFERROR(TITULAR!K44,0) -> 8713.528343
B96: Nota: Esta cotización tiene una validez de 15 días apartir de su fecha de elaboración. La edad limite de aceptación es hasta los 64 años. Incluyen I.V.A. Y derechos de póliza, no incluye recargo por pago fraccionado
B98: =+IMPRESION!C102 -> Tarifa Esencial Vig: Marzo 01, 2018

Sheet Instrucciones (hidden)
I7: =TODAY() -> 2018-01-26
B10: INSTRUCCIONES
B12: Seguros Banorte elaboró para ti esta herramienta de sencilla utilización de la que . . .
B13: ¡Estamos seguros, te será de gran utilidad!
B17: 1. Seleccione el TIPO DE COTIZACIÓN (Individual o Familiar)
B18: 2. Seleccione la fecha de PRIMER VIGENCIA en Seguros Banorte de la póliza a cotizar
B19: 3. Seleccione la SUMA ASEGURADA deseada
B20: 4. Seleccione el DEDUCIBLE deseado
B21: 5. Seleccione el ESTADO donde radica el cliente.
B22: (El cotizador le asignará la Región que le corresponda)
B23: 6. Seleccione si desea COBERTURA DE ELIMINACION DE DEDUCIBLE POR ACCIDENTE ("SI", " NO")
B24: 7. Seleccione si desea COBERTURA DE VISION ("SI", " NO")
B25: 8. Seleccione si desea COBERTURA DE INDEMNIZACION POR ENFERMEDADES GRAVES , la SUMA ASEGURADA
B26: 9. Indique el IVA que corresponde a su región (16%)
B27: 10. Llene el NOMBRE, SEXO y EDAD del Titular, Cónyuge y Dependientes (si fuera el caso)
B28: 11. Vaya al FORMATO DE IMPRESIÓN para obtener la COTIZACIÓN
B29: 12. Si desea obtener las Tarifas por Edad, después de haber efectuado una COTIZACIÓN podrá consultarlas en TARIFARIO

Sheet Cotizador

Sheet CAMBIOS ME (hidden)
A1: CAMBIOS MEDICO ESENCIAL
A3: HOJA FACTORES (TABLAS DE CALCULO)
A4: Tabla de Deducible
A5: Tabla de Enfermedades Graves
A6: Tabla de Tarifas
A7: Se modifica tabla de factores por región a quedar 4
A9: HOJA TITULAR DEL COTIZADOR (CALCULO TARIFA)
A10: Modificación de costos cobertura Adicionales (dental, PAQ_ADIC, ASIST_IKE, Cvisión)
A11: Se elimina la cobertura de Educasystem (maestro a domicilio)
A12: Se agrega costo por cobertura de parto y cesárea (mujeres edades de 18 a 54 años ya sean titulares, cónyuge o dependientes)
A13: Modificación de costo de Derecho de Póliza a 700 pesos
A15: HOJA COTIZACION (COTIZADOR)
A16: se deja deducible mínimo en 6,000
A17: se modifica Querétaro a zona 4
A18: se modifican la tabla de estados por zona (sólo hay 4 zonas)
A20: HOJA IMPRESIÓN (formato Cotización y Cuadro de especificaciones) | H20: CUADRO DE ESPECIFICACIONES IMPLICA
A21: Se elimina de cuadro de coberturas la cobertura de Servicio de Maestro a Domicilio | H21: ü Cuadro de especificaciones dentro del botón de “Cuadro de Especificaciones” en el paso 2 del cotizador.
A22: Se MODIFICA en el cuadro de coberturas la Cobertura de Dental para agregar Visión | H22: ü Cuadro de especificaciones dentro de la cotización.
A23: Modificación de la leyenda de beneficio por pago directo y una leyenda en NOTAS | H23: ü Cuadro de especificaciones dentro del kit de impresión de la póliza.
H24: ü Cuadro de especificaciones en el botón “Cuadro de Especificaciones” del Tarifario.
H25: ü Cuadro de especificaciones generado dentro del Tarifario.
H26: ü Cuadro de especificaciones dentro de renovaciones Aviso de Renovación de Póliza
A27: MODULOS A IMPACTAR EN ESPACIO
A28: Tarifa de Línea
A29: Tarifa de Empleados
A30: Tarifario
A31: Renovación
A33: CAMBIO EN NUMERO DE REGISTRO
A34: Solicitud
A35: Carátula
A36: Cuadro de Especificaciones
A38: SABE
A39: Aplicar los cambios en la integración
A40: Considerar la nueva cobertura adicional para cobertura de parto y cesárea (adicional 17)
A41: No integrar la cobertura de educasystem (maestro a domicilio)
A44: MODIFICACION EN CARTAS
A45: Cartas de Bienvenida
A46: Carta de Aviso de Renovación
A47: Carta de Renovación
A49: MODIFICACION DE FORMATOS, TAMAÑO DE LETRA Y FORMATOS
A50: Solicitud
A51: carátula
A52: cuadro de especificaciones.
